Workbook

Sheet Series Table
B1: South Wales 2016 Mid Week Series | G1: Blorenge Downhill | I1: Blorenge Uphill | K1: Pentyrch Hill Race | M1: Mynydd Pen Y Fal | O1: Craig Yr Allt | Q1: Tintern Trot
A2: Pos | B2: Name | C2: Club | D2: Gender | E2: Cat. | F2: Total | G2: Time | H2: Score | I2: Time | J2: Score | K2: Time | L2: Score | M2: Time | N2: Score | O2: Time | P2: Score | Q2: Time | R2: Competed | S2: Ave (Best 4)
A3: =ROW(A1) -> 1 | B3: Matt Stott | C3: =IFERROR(VLOOKUP(B3,INDIRECT("'"&$G$1&"'!"&"$C$2:$H$200"),2,FALSE),"") -> MDC | D3: =IFERROR(VLOOKUP(B3,INDIRECT("'"&$G$1&"'!"&"$C$2:$H$200"),3,FALSE),"") -> M | E3: =IFERROR(VLOOKUP(B3,INDIRECT("'"&$G$1&"'!"&"$C$2:$H$200"),4,FALSE),"") -> MU40 | F3: =SUM(LARGE((H3,J3,L3,N3,P3),{1,2,3,4,5})) -> 312.9862505 | G3: =IFERROR(VLOOKUP(B3,INDIRECT("'"&$G$1&"'!"&"$C$2:$H$200"),5,FALSE),"") -> 00:14:16 | H3: =IFERROR(VLOOKUP(B3,INDIRECT("'"&$G$1&"'!"&"$C$2:$H$200"),6,FALSE),0) -> 108.036098 | I3: =IFERROR(VLOOKUP(B3,INDIRECT("'"&$I$1&"'!"&"$C$2:$G$200"),5,FALSE),"") -> 0.01959490741 | J3: =IFERROR(VLOOKUP(B3,INDIRECT("'"&$I$1&"'!"&"$C$2:$H$200"),6,FALSE),0) -> 105.4084255 | K3: =IFERROR(VLOOKUP(B3,INDIRECT("'"&$K$1&"'!"&"$C$2:$G$400"),5,FALSE),"") ->  | L3: =IFERROR(VLOOKUP(B3,INDIRECT("'"&$K$1&"'!"&"$C$2:$H$400"),6,FALSE),0) -> 0 | M3: =IFERROR(VLOOKUP(B3,INDIRECT("'"&$M$1&"'!"&"$C$2:$H$200"),5,FALSE),"") -> 0.02892361111 | N3: =IFERROR(VLOOKUP(B3,INDIRECT("'"&$M$1&"'!"&"$C$2:$H$200"),6,FALSE),0) -> 99.54172697 | O3: =IFERROR(VLOOKUP(B3,INDIRECT("'"&$O$1&"'!"&"$C$2:$G$200"),4,FALSE),"") ->  | P3: =IFERROR(VLOOKUP(B3,INDIRECT("'"&$O$1&"'!"&"$C$2:$G$200"),5,FALSE),0) -> 0 | Q3: =IFERROR(VLOOKUP(B3,INDIRECT("'"&$Q$1&"'!"&"$C$2:$G$200"),4,FALSE),"") ->  | R3: =6-COUNTIF(G3:Q3,"") -> 3 | S3: =F3/IF(R3>4,5,R3) -> 104.3287502
A4: 2 | B4: Paul Tucker | C4: U/A | D4: M | E4: MO50 | F4: =SUM(LARGE((H4,J4,L4,N4,P4),{1,2,3,4,5})) -> 259.3931332 | G4: 00:17:19 | H4: 88.37559089 | I4: 0.02541666667 | J4: 77.30472679 | L4: 0 | M4: 0.03060185185 | N4: 93.71281557 | P4: 0 | R4: 3 | S4: 86.46437775
A5: 3 | B5: Mark Buxton | C5: MDC | D5: M | E5: MU40 | F5: =SUM(LARGE((H5,J5,L5,N5,P5),{1,2,3,4,5})) -> 235.3174453 | G5: 00:19:22 | H5: 75.1611517 | I5: 0.02478009259 | J5: 80.37769583 | K5: 2.2625 | L5: 79.77859779 | N5: 0 | P5: 0 | R5: 3 | S5: 78.43914844
A6: 4 | B6: Chris Jones | C6: MDC | D6: M | E6: MU40 | F6: =SUM(LARGE((H6,J6,L6,N6,P6),{1,2,3,4,5})) -> 210.6552251 | G6: 00:14:17 | H6: 107.9286635 | I6: 0.02015046296 | J6: 102.7265616 | L6: 0 | N6: 0 | P6: 0 | R6: 2 | S6: 105.3276126
A7: 5 | B7: Andy Stott | C7: MDC | D7: M | E7: M050 | F7: =SUM(LARGE((H7,J7,L7,N7,P7),{1,2,3,4,5})) -> 206.7931088 | G7: 00:19:36 | H7: 73.65706919 | I7: 0.03005787037 | J7: 54.89998883 | L7: 0 | M7: 0.03505787037 | N7: 78.23605081 | P7: 0 | R7: 3 | S7: 68.93103628
A8: 6 | B8: Paul Murrin | C8: Chepstow Harriers | D8: M | E8: MO40 | F8: =SUM(LARGE((H8,J8,L8,N8,P8),{1,2,3,4,5})) -> 204.1836102 | G8: 00:15:37 | H8: 99.33390632 | I8: 0.01971064815 | J8: 104.8497039 | L8: 0 | N8: 0 | P8: 0 | R8: 2 | S8: 102.0918051
A9: 7 | B9: Iwan Morton | C9: =IFERROR(VLOOKUP(B9,INDIRECT("'"&$M$1&"'!"&"$C$2:$H$400"),2,FALSE),"") -> MMRT | D9: =IFERROR(VLOOKUP(B9,INDIRECT("'"&$M$1&"'!"&"$C$2:$H$400"),3,FALSE),"") -> M | E9: =IFERROR(VLOOKUP(B9,INDIRECT("'"&$M$1&"'!"&"$C$2:$H$400"),4,FALSE),"") -> MU40 | F9: =SUM(LARGE((H9,J9,L9,N9,P9),{1,2,3,4,5})) -> 200.4024092 | H9: 0 | J9: 0 | K9: 1.885416667 | L9: 99.81549815 | M9: 0.02862268519 | N9: 100.5869111 | P9: 0 | R9: 2 | S9: 100.2012046
A10: 8 | B10: Oscar Partridge | C10: =IFERROR(VLOOKUP(B10,INDIRECT("'"&$K$1&"'!"&"$C$2:$H$200"),2,FALSE),"") -> Mynydd Du | D10: =IFERROR(VLOOKUP(B10,INDIRECT("'"&$K$1&"'!"&"$C$2:$H$200"),3,FALSE),"") -> M | E10: =IFERROR(VLOOKUP(B10,INDIRECT("'"&$K$1&"'!"&"$C$2:$H$200"),4,FALSE),"") -> MU40 | F10: =SUM(LARGE((H10,J10,L10,N10,P10),{1,2,3,4,5})) -> 197.1155885 | H10: 0 | J10: 0 | K10: 1.938194444 | L10: 97.01107011 | M10: 0.02876157407 | N10: 100.1045184 | P10: 0 | R10: 2 | S10: 98.55779426
A11: 9 | B11: David Jenkins | C11: =IFERROR(VLOOKUP(B11,INDIRECT("'"&$G$1&"'!"&"$C$2:$H$200"),2,FALSE),"") -> Forest of Dean Athletics Club | D11: =IFERROR(VLOOKUP(B11,INDIRECT("'"&$G$1&"'!"&"$C$2:$H$200"),3,FALSE),"") -> M | E11: =IFERROR(VLOOKUP(B11,INDIRECT("'"&$G$1&"'!"&"$C$2:$H$200"),4,FALSE),"") -> MU40 | F11: =SUM(LARGE((H11,J11,L11,N11,P11),{1,2,3,4,5})) -> 195.2658192 | G11: 00:22:16 | H11: 56.46755479 | I11: 0.02851851852 | J11: 62.3309867 | L11: 0 | M11: 0.03556712963 | N11: 76.4672777 | P11: 0 | R11: 3 | S11: 65.0886064
A12: 10 | B12: Ed Dickson | C12: =IFERROR(VLOOKUP(B12,INDIRECT("'"&$G$1&"'!"&"$C$2:$H$200"),2,FALSE),"") -> MDC | D12: =IFERROR(VLOOKUP(B12,INDIRECT("'"&$G$1&"'!"&"$C$2:$H$200"),3,FALSE),"") -> M | E12: =IFERROR(VLOOKUP(B12,INDIRECT("'"&$G$1&"'!"&"$C$2:$H$200"),4,FALSE),"") -> MU40 | F12: =SUM(LARGE((H12,J12,L12,N12,P12),{1,2,3,4,5})) -> 182.2093904 | G12: 00:16:38 | H12: 92.78040395 | I12: 0.02290509259 | J12: 89.42898648 | L12: 0 | N12: 0 | P12: 0 | R12: 2 | S12: 91.10469522
A13: 11 | B13: Ian Macklin | C13: =IFERROR(VLOOKUP(B13,INDIRECT("'"&$K$1&"'!"&"$C$2:$H$200"),2,FALSE),"") -> Mynyddwyr de Cymru | D13: =IFERROR(VLOOKUP(B13,INDIRECT("'"&$K$1&"'!"&"$C$2:$H$200"),3,FALSE),"") -> M | E13: =IFERROR(VLOOKUP(B13,INDIRECT("'"&$K$1&"'!"&"$C$2:$H$200"),4,FALSE),"") -> MO40 | F13: =SUM(LARGE((H13,J13,L13,N13,P13),{1,2,3,4,5})) -> 180.5368146 | H13: 0 | J13: 0 | K13: 2.25625 | L13: 80.11070111 | M13: 0.02866898148 | N13: 100.4261135 | P13: 0 | R13: 2 | S13: 90.26840732
A14: 12 | B14: John Aggleton | C14: =IFERROR(VLOOKUP(B14,INDIRECT("'"&$K$1&"'!"&"$C$2:$H$200"),2,FALSE),"") -> Mynyddwyr de Cymru | D14: =IFERROR(VLOOKUP(B14,INDIRECT("'"&$K$1&"'!"&"$C$2:$H$200"),3,FALSE),"") -> M | E14: =IFERROR(VLOOKUP(B14,INDIRECT("'"&$K$1&"'!"&"$C$2:$H$200"),4,FALSE),"") -> MO60 | F14: =SUM(LARGE((H14,J14,L14,N14,P14),{1,2,3,4,5})) -> 180.3739404 | H14: 0 | J14: 0 | K14: 2.238888889 | L14: 81.03321033 | M14: 0.02898148148 | N14: 99.34073002 | P14: 0 | R14: 2 | S14: 90.18697018
A15: 13 | B15: Martin Driscoll | C15: =IFERROR(VLOOKUP(B15,INDIRECT("'"&$G$1&"'!"&"$C$2:$H$200"),2,FALSE),"") -> MDC | D15: =IFERROR(VLOOKUP(B15,INDIRECT("'"&$G$1&"'!"&"$C$2:$H$200"),3,FALSE),"") -> M | E15: =IFERROR(VLOOKUP(B15,INDIRECT("'"&$G$1&"'!"&"$C$2:$H$200"),4,FALSE),"") -> MU40 | F15: =SUM(LARGE((H15,J15,L15,N15,P15),{1,2,3,4,5})) -> 179.6178776 | G15: 00:16:46 | H15: 91.92092823 | I15: 0.02326388889 | J15: 87.69694938 | L15: 0 | N15: 0 | P15: 0 | R15: 2 | S15: 89.80893881
A16: 14 | B16: Helen Brown | C16: =IFERROR(VLOOKUP(B16,INDIRECT("'"&$G$1&"'!"&"$C$2:$H$200"),2,FALSE),"") -> Mynydd Du | D16: =IFERROR(VLOOKUP(B16,INDIRECT("'"&$G$1&"'!"&"$C$2:$H$200"),3,FALSE),"") -> F | E16: =IFERROR(VLOOKUP(B16,INDIRECT("'"&$G$1&"'!"&"$C$2:$H$200"),4,FALSE),"") -> FO40 | F16: =SUM(LARGE((H16,J16,L16,N16,P16),{1,2,3,4,5})) -> 177.5550735 | G16: 00:17:00 | H16: 90.41684572 | I16: 0.02337962963 | J16: 87.13822773 | L16: 0 | N16: 0 | P16: 0 | R16: 2 | S16: 88.77753673
A17: 15 | B17: Mark Burley | C17: =IFERROR(VLOOKUP(B17,INDIRECT("'"&$G$1&"'!"&"$C$2:$H$200"),2,FALSE),"") -> Bristol and West Athletics Club | D17: =IFERROR(VLOOKUP(B17,INDIRECT("'"&$G$1&"'!"&"$C$2:$H$200"),3,FALSE),"") -> M | E17: =IFERROR(VLOOKUP(B17,INDIRECT("'"&$G$1&"'!"&"$C$2:$H$200"),4,FALSE),"") -> MU40 | F17: =SUM(LARGE((H17,J17,L17,N17,P17),{1,2,3,4,5})) -> 176.7346987 | G17: 00:17:43 | H17: 85.79716373 | I17: 0.02259259259 | J17: 90.93753492 | L17: 0 | N17: 0 | P17: 0 | R17: 2 | S17: 88.36734933
A18: 16 | B18: Oliver Lamford | C18: =IFERROR(VLOOKUP(B18,INDIRECT("'"&$K$1&"'!"&"$C$2:$H$200"),2,FALSE),"") -> Mynyddwyr de Cymru | D18: =IFERROR(VLOOKUP(B18,INDIRECT("'"&$K$1&"'!"&"$C$2:$H$200"),3,FALSE),"") -> M | E18: =IFERROR(VLOOKUP(B18,INDIRECT("'"&$K$1&"'!"&"$C$2:$H$200"),4,FALSE),"") -> MU40 | F18: =SUM(LARGE((H18,J18,L18,N18,P18),{1,2,3,4,5})) -> 167.6818036 | H18: 0 | J18: 0 | K18: 2.410416667 | L18: 71.91881919 | M18: 0.03001157407 | N18: 95.7629844 | P18: 0 | R18: 2 | S18: 83.8409018
A19: 17 | B19: Gary Davies | C19: =IFERROR(VLOOKUP(B19,INDIRECT("'"&$K$1&"'!"&"$C$2:$H$200"),2,FALSE),"") -> Mynyddwyr de Cymru | D19: =IFERROR(VLOOKUP(B19,INDIRECT("'"&$K$1&"'!"&"$C$2:$H$200"),3,FALSE),"") -> M | E19: =IFERROR(VLOOKUP(B19,INDIRECT("'"&$K$1&"'!"&"$C$2:$H$200"),4,FALSE),"") -> MU40 | F19: =SUM(LARGE((H19,J19,L19,N19,P19),{1,2,3,4,5})) -> 167.2264142 | H19: 0 | J19: 0 | K19: 2.407638889 | L19: 72.06642066 | M19: 0.03018518519 | N19: 95.15999357 | P19: 0 | R19: 2 | S19: 83.61320712
A20: 18 | B20: Andrew Dickens | C20: =IFERROR(VLOOKUP(B20,INDIRECT("'"&$K$1&"'!"&"$C$2:$H$200"),2,FALSE),"") -> Mynydd Du | D20: =IFERROR(VLOOKUP(B20,INDIRECT("'"&$K$1&"'!"&"$C$2:$H$200"),3,FALSE),"") -> M | E20: =IFERROR(VLOOKUP(B20,INDIRECT("'"&$K$1&"'!"&"$C$2:$H$200"),4,FALSE),"") -> MO40 | F20: =SUM(LARGE((H20,J20,L20,N20,P20),{1,2,3,4,5})) -> 166.7662603 | H20: 0 | J20: 0 | K20: 2.378472222 | L20: 73.61623616 | M20: 0.03076388889 | N20: 93.15002412 | P20: 0 | R20: 2 | S20: 83.38313014
A21: 19 | B21: Andrew Dickens | C21: =IFERROR(VLOOKUP(B21,INDIRECT("'"&$M$1&"'!"&"$C$2:$H$400"),2,FALSE),"") -> Mynydd Du | D21: =IFERROR(VLOOKUP(B21,INDIRECT("'"&$M$1&"'!"&"$C$2:$H$400"),3,FALSE),"") -> M | E21: =IFERROR(VLOOKUP(B21,INDIRECT("'"&$M$1&"'!"&"$C$2:$H$400"),4,FALSE),"") -> MO40 | F21: =SUM(LARGE((H21,J21,L21,N21,P21),{1,2,3,4,5})) -> 166.7662603 | H21: 0 | J21: 0 | K21: 2.378472222 | L21: 73.61623616 | M21: 0.03076388889 | N21: 93.15002412 | P21: 0 | R21: 2 | S21: 83.38313014
A22: 20 | B22: Jamie Clode | C22: =IFERROR(VLOOKUP(B22,INDIRECT("'"&$K$1&"'!"&"$C$2:$H$200"),2,FALSE),"") -> Bridgend AC | D22: =IFERROR(VLOOKUP(B22,INDIRECT("'"&$K$1&"'!"&"$C$2:$H$200"),3,FALSE),"") -> M | E22: =IFERROR(VLOOKUP(B22,INDIRECT("'"&$K$1&"'!"&"$C$2:$H$200"),4,FALSE),"") -> MU40 | F22: =SUM(LARGE((H22,J22,L22,N22,P22),{1,2,3,4,5})) -> 166.1850216 | H22: 0 | J22: 0 | K22: 2.264583333 | L22: 79.66789668 | M22: 0.03267361111 | N22: 86.51712494 | P22: 0 | R22: 2 | S22: 83.09251081
A23: 21 | B23: Jamie Clode | C23: =IFERROR(VLOOKUP(B23,INDIRECT("'"&$M$1&"'!"&"$C$2:$H$400"),2,FALSE),"") -> Bridgend AC | D23: =IFERROR(VLOOKUP(B23,INDIRECT("'"&$M$1&"'!"&"$C$2:$H$400"),3,FALSE),"") -> M | E23: =IFERROR(VLOOKUP(B23,INDIRECT("'"&$M$1&"'!"&"$C$2:$H$400"),4,FALSE),"") -> MU40 | F23: =SUM(LARGE((H23,J23,L23,N23,P23),{1,2,3,4,5})) -> 166.1850216 | H23: 0 | J23: 0 | K23: 2.264583333 | L23: 79.66789668 | M23: 0.03267361111 | N23: 86.51712494 | P23: 0 | R23: 2 | S23: 83.09251081
A24: 22 | B24: Steve Harrhy | C24: =IFERROR(VLOOKUP(B24,INDIRECT("'"&$G$1&"'!"&"$C$2:$H$200"),2,FALSE),"") -> Pontypool | D24: =IFERROR(VLOOKUP(B24,INDIRECT("'"&$G$1&"'!"&"$C$2:$H$200"),3,FALSE),"") -> M | E24: =IFERROR(VLOOKUP(B24,INDIRECT("'"&$G$1&"'!"&"$C$2:$H$200"),4,FALSE),"") -> MO50 | F24: =SUM(LARGE((H24,J24,L24,N24,P24),{1,2,3,4,5})) -> 156.5651594 | G24: 00:18:09 | H24: 83.00386764 | I24: 0.02619212963 | J24: 73.56129176 | L24: 0 | N24: 0 | P24: 0 | R24: 2 | S24: 78.2825797
A25: 23 | B25: Lou Summers | C25: =IFERROR(VLOOKUP(B25,INDIRECT("'"&$K$1&"'!"&"$C$2:$H$200"),2,FALSE),"") -> Mynydd Du | D25: =IFERROR(VLOOKUP(B25,INDIRECT("'"&$K$1&"'!"&"$C$2:$H$200"),3,FALSE),"") -> F | E25: =IFERROR(VLOOKUP(B25,INDIRECT("'"&$K$1&"'!"&"$C$2:$H$200"),4,FALSE),"") -> FO40 | F25: =SUM(LARGE((H25,J25,L25,N25,P25),{1,2,3,4,5})) -> 156.5321545 | H25: 0 | J25: 0 | K25: 2.424305556 | L25: 71.18081181 | M25: 0.03300925926 | N25: 85.35134266 | P25: 0 | R25: 2 | S25: 78.26607723
A26: 24 | B26: Rona Davies | C26: =IFERROR(VLOOKUP(B26,INDIRECT("'"&$G$1&"'!"&"$C$2:$H$200"),2,FALSE),"") -> Mynydd Du | D26: =IFERROR(VLOOKUP(B26,INDIRECT("'"&$G$1&"'!"&"$C$2:$H$200"),3,FALSE),"") -> F | E26: =IFERROR(VLOOKUP(B26,INDIRECT("'"&$G$1&"'!"&"$C$2:$H$200"),4,FALSE),"") -> FU40 | F26: =SUM(LARGE((H26,J26,L26,N26,P26),{1,2,3,4,5})) -> 147.8032338 | G26: 00:21:42 | H26: 60.1203266 | J26: 0 | L26: 0 | M26: 0.03233796296 | N26: 87.68290722 | P26: 0 | R26: 2 | S26: 73.90161691
A27: 25 | B27: Daniel Morgan | C27: =IFERROR(VLOOKUP(B27,INDIRECT("'"&$K$1&"'!"&"$C$2:$H$200"),2,FALSE),"") -> Bridgend AC | D27: =IFERROR(VLOOKUP(B27,INDIRECT("'"&$K$1&"'!"&"$C$2:$H$200"),3,FALSE),"") -> M | E27: =IFERROR(VLOOKUP(B27,INDIRECT("'"&$K$1&"'!"&"$C$2:$H$200"),4,FALSE),"") -> MU40 | F27: =SUM(LARGE((H27,J27,L27,N27,P27),{1,2,3,4,5})) -> 140.405103 | H27: 0 | J27: 0 | K27: 2.795138889 | L27: 51.47601476 | M27: 0.03197916667 | N27: 88.92908828 | P27: 0 | R27: 2 | S27: 70.20255152
A28: 26 | B28: Daniel Morgan | C28: =IFERROR(VLOOKUP(B28,INDIRECT("'"&$M$1&"'!"&"$C$2:$H$400"),2,FALSE),"") -> Bridgend AC | D28: =IFERROR(VLOOKUP(B28,INDIRECT("'"&$M$1&"'!"&"$C$2:$H$400"),3,FALSE),"") -> M | E28: =IFERROR(VLOOKUP(B28,INDIRECT("'"&$M$1&"'!"&"$C$2:$H$400"),4,FALSE),"") -> MU40 | F28: =SUM(LARGE((H28,J28,L28,N28,P28),{1,2,3,4,5})) -> 140.405103 | H28: 0 | J28: 0 | K28: 2.795138889 | L28: 51.47601476 | M28: 0.03197916667 | N28: 88.92908828 | P28: 0 | R28: 2 | S28: 70.20255152
A29: 27 | B29: Karen Elvers | C29: =IFERROR(VLOOKUP(B29,INDIRECT("'"&$K$1&"'!"&"$C$2:$H$200"),2,FALSE),"") -> Mynyddwyr de Cymru | D29: =IFERROR(VLOOKUP(B29,INDIRECT("'"&$K$1&"'!"&"$C$2:$H$200"),3,FALSE),"") -> F | E29: =IFERROR(VLOOKUP(B29,INDIRECT("'"&$K$1&"'!"&"$C$2:$H$200"),4,FALSE),"") -> FO40 | F29: =SUM(LARGE((H29,J29,L29,N29,P29),{1,2,3,4,5})) -> 132.0593954 | H29: 0 | J29: 0 | K29: 2.671527778 | L29: 58.04428044 | M29: 0.03627314815 | N29: 74.01511497 | P29: 0 | R29: 2 | S29: 66.02969771
A30: 28 | B30: John Price | C30: =IFERROR(VLOOKUP(B30,INDIRECT("'"&$G$1&"'!"&"$C$2:$H$200"),2,FALSE),"") -> Hay Hotfooters | D30: =IFERROR(VLOOKUP(B30,INDIRECT("'"&$G$1&"'!"&"$C$2:$H$200"),3,FALSE),"") -> M | E30: =IFERROR(VLOOKUP(B30,INDIRECT("'"&$G$1&"'!"&"$C$2:$H$200"),4,FALSE),"") -> MO50 | F30: =SUM(LARGE((H30,J30,L30,N30,P30),{1,2,3,4,5})) -> 123.3621263 | G30: 00:23:35 | H30: 47.98023206 | J30: 0 | L30: 0 | M30: 0.03587962963 | N30: 75.3818942 | P30: 0 | R30: 2 | S30: 61.68106313
A31: 29 | B31: John Price | C31: =IFERROR(VLOOKUP(B31,INDIRECT("'"&$M$1&"'!"&"$C$2:$H$400"),2,FALSE),"") -> Hay Hotfooters | D31: =IFERROR(VLOOKUP(B31,INDIRECT("'"&$M$1&"'!"&"$C$2:$H$400"),3,FALSE),"") -> M | E31: =IFERROR(VLOOKUP(B31,INDIRECT("'"&$M$1&"'!"&"$C$2:$H$400"),4,FALSE),"") -> MO50 | F31: =SUM(LARGE((H31,J31,L31,N31,P31),{1,2,3,4,5})) -> 123.3621263 | G31: 00:23:35 | H31: 47.98023206 | J31: 0 | L31: 0 | M31: 0.03587962963 | N31: 75.3818942 | P31: 0 | R31: 2 | S31: 61.68106313
A32: 30 | B32: Meshari Alsaeed | C32: =IFERROR(VLOOKUP(B32,INDIRECT("'"&$G$1&"'!"&"$C$2:$H$200"),2,FALSE),"") -> MDC | D32: =IFERROR(VLOOKUP(B32,INDIRECT("'"&$G$1&"'!"&"$C$2:$H$200"),3,FALSE),"") -> M | E32: =IFERROR(VLOOKUP(B32,INDIRECT("'"&$G$1&"'!"&"$C$2:$H$200"),4,FALSE),"") -> MU23 | F32: =SUM(LARGE((H32,J32,L32,N32,P32),{1,2,3,4,5})) -> 105.2726996 | G32: 00:21:36 | H32: 60.76493339 | I32: 0.03221064815 | J32: 44.50776623 | L32: 0 | N32: 0 | P32: 0 | R32: 2 | S32: 52.63634981
A33: 31 | B33: Katy Benson | C33: =IFERROR(VLOOKUP(B33,INDIRECT("'"&$G$1&"'!"&"$C$2:$H$200"),2,FALSE),"") -> MDC | D33: =IFERROR(VLOOKUP(B33,INDIRECT("'"&$G$1&"'!"&"$C$2:$H$200"),3,FALSE),"") -> F | E33: =IFERROR(VLOOKUP(B33,INDIRECT("'"&$G$1&"'!"&"$C$2:$H$200"),4,FALSE),"") -> FU40 | F33: =SUM(LARGE((H33,J33,L33,N33,P33),{1,2,3,4,5})) -> 105.1569576 | G33: 00:22:01 | H33: 58.07907177 | I33: 0.03167824074 | J33: 47.0778858 | L33: 0 | N33: 0 | P33: 0 | R33: 2 | S33: 52.57847878
A34: 32 | B34: Daniel Bodman | C34: =IFERROR(VLOOKUP(B34,INDIRECT("'"&$K$1&"'!"&"$C$2:$H$200"),2,FALSE),"") -> Aberdare VAAC | D34: =IFERROR(VLOOKUP(B34,INDIRECT("'"&$K$1&"'!"&"$C$2:$H$200"),3,FALSE),"") -> M | E34: =IFERROR(VLOOKUP(B34,INDIRECT("'"&$K$1&"'!"&"$C$2:$H$200"),4,FALSE),"") -> MU40 | F34: =SUM(LARGE((H34,J34,L34,N34,P34),{1,2,3,4,5})) -> 101.8819188 | H34: 0 | J34: 0 | K34: 1.846527778 | L34: 101.8819188 | N34: 0 | P34: 0 | R34: 1 | S34: 101.8819188
A35: 33 | B35: Peter Ryder | C35: =IFERROR(VLOOKUP(B35,INDIRECT("'"&$K$1&"'!"&"$C$2:$H$200"),2,FALSE),"") -> Cardiff AAC | D35: =IFERROR(VLOOKUP(B35,INDIRECT("'"&$K$1&"'!"&"$C$2:$H$200"),3,FALSE),"") -> M | E35: =IFERROR(VLOOKUP(B35,INDIRECT("'"&$K$1&"'!"&"$C$2:$H$200"),4,FALSE),"") -> MU40 | F35: =SUM(LARGE((H35,J35,L35,N35,P35),{1,2,3,4,5})) -> 101.2915129 | H35: 0 | J35: 0 | K35: 1.857638889 | L35: 101.2915129 | N35: 0 | P35: 0 | R35: 1 | S35: 101.2915129
A36: 34 | B36: Matthew Lawson | C36: =IFERROR(VLOOKUP(B36,INDIRECT("'"&$M$1&"'!"&"$C$2:$H$400"),2,FALSE),"") -> Chepstow Harriers | D36: =IFERROR(VLOOKUP(B36,INDIRECT("'"&$M$1&"'!"&"$C$2:$H$400"),3,FALSE),"") -> M | E36: =IFERROR(VLOOKUP(B36,INDIRECT("'"&$M$1&"'!"&"$C$2:$H$400"),4,FALSE),"") -> MO40 | F36: =SUM(LARGE((H36,J36,L36,N36,P36),{1,2,3,4,5})) -> 99.22013185 | H36: 0 | J36: 0 | L36: 0 | M36: 0.0290162037 | N36: 99.22013185 | P36: 0 | R36: 1 | S36: 99.22013185
A37: 35 | B37: Ricahrd Cronin | C37: MDC | D37: M | E37: MU40 | F37: =SUM(LARGE((H37,J37,L37,N37,P37),{1,2,3,4,5})) -> 97.25036179 | H37: 0 | J37: 0 | L37: 0 | M37: 0.02958333333 | N37: 97.25036179 | P37: 0 | R37: 1 | S37: 97.25036179
A38: 36 | B38: Jason King | C38: LMRT | D38: M | E38: M040 | F38: =SUM(LARGE((H38,J38,L38,N38,P38),{1,2,3,4,5})) -> 95.68258562 | H38: 0 | J38: 0 | L38: 0 | M38: 0.03003472222 | N38: 95.68258562 | P38: 0 | R38: 1 | S38: 95.68258562
A39: 37 | B39: Mike Fawcett | C39: LMRT | D39: M | E39: MO40 | F39: =SUM(LARGE((H39,J39,L39,N39,P39),{1,2,3,4,5})) -> 95.48158868 | H39: 0 | J39: 0 | L39: 0 | M39: 0.03009259259 | N39: 95.48158868 | P39: 0 | R39: 1 | S39: 95.48158868
A40: 38 | B40: Dan Sandford | C40: Forest of Dean AC | D40: M | E40: MO40 | F40: =SUM(LARGE((H40,J40,L40,N40,P40),{1,2,3,4,5})) -> 94.47660396 | H40: 0 | J40: 0 | L40: 0 | M40: 0.03038194444 | N40: 94.47660396 | P40: 0 | R40: 1 | S40: 94.47660396
A41: 39 | B41: Andy Creber | C41: Chepstow Harriers | D41: M | E41: MO50 | F41: =SUM(LARGE((H41,J41,L41,N41,P41),{1,2,3,4,5})) -> 94.23540762 | H41: 0 | J41: 0 | L41: 0 | M41: 0.03045138889 | N41: 94.23540762 | P41: 0 | R41: 1 | S41: 94.23540762
A42: 40 | B42: Jack Brown | C42: =IFERROR(VLOOKUP(B42,INDIRECT("'"&$K$1&"'!"&"$C$2:$H$200"),2,FALSE),"") -> Unattached | D42: =IFERROR(VLOOKUP(B42,INDIRECT("'"&$K$1&"'!"&"$C$2:$H$200"),3,FALSE),"") -> M | E42: =IFERROR(VLOOKUP(B42,INDIRECT("'"&$K$1&"'!"&"$C$2:$H$200"),4,FALSE),"") -> MU40 | F42: =SUM(LARGE((H42,J42,L42,N42,P42),{1,2,3,4,5})) -> 94.05904059 | H42: 0 | J42: 0 | K42: 1.99375 | L42: 94.05904059 | N42: 0 | P42: 0 | R42: 1 | S42: 94.05904059
A43: 41 | B43: Julian Boon | C43: =IFERROR(VLOOKUP(B43,INDIRECT("'"&$M$1&"'!"&"$C$2:$H$400"),2,FALSE),"") -> Forest of Dean AC | D43: =IFERROR(VLOOKUP(B43,INDIRECT("'"&$M$1&"'!"&"$C$2:$H$400"),3,FALSE),"") -> M | E43: =IFERROR(VLOOKUP(B43,INDIRECT("'"&$M$1&"'!"&"$C$2:$H$400"),4,FALSE),"") -> MO40 | F43: =SUM(LARGE((H43,J43,L43,N43,P43),{1,2,3,4,5})) -> 93.91381251 | H43: 0 | J43: 0 | L43: 0 | M43: 0.03054398148 | N43: 93.91381251 | P43: 0 | R43: 1 | S43: 93.91381251
A44: 42 | B44: Darren Bishop | C44: =IFERROR(VLOOKUP(B44,INDIRECT("'"&$K$1&"'!"&"$C$2:$H$200"),2,FALSE),"") -> Pontypridd Roadents | D44: =IFERROR(VLOOKUP(B44,INDIRECT("'"&$K$1&"'!"&"$C$2:$H$200"),3,FALSE),"") -> M | E44: =IFERROR(VLOOKUP(B44,INDIRECT("'"&$K$1&"'!"&"$C$2:$H$200"),4,FALSE),"") -> MU40 | F44: =SUM(LARGE((H44,J44,L44,N44,P44),{1,2,3,4,5})) -> 93.6900369 | H44: 0 | J44: 0 | K44: 2.000694444 | L44: 93.6900369 | N44: 0 | P44: 0 | R44: 1 | S44: 93.6900369
A45: 43 | B45: James Woodier | C45: =IFERROR(VLOOKUP(B45,INDIRECT("'"&$M$1&"'!"&"$C$2:$H$400"),2,FALSE),"") -> Mynydd Du | D45: =IFERROR(VLOOKUP(B45,INDIRECT("'"&$M$1&"'!"&"$C$2:$H$400"),3,FALSE),"") -> M | E45: =IFERROR(VLOOKUP(B45,INDIRECT("'"&$M$1&"'!"&"$C$2:$H$400"),4,FALSE),"") -> MU40 | F45: =SUM(LARGE((H45,J45,L45,N45,P45),{1,2,3,4,5})) -> 93.35102106 | H45: 0 | J45: 0 | L45: 0 | M45: 0.03070601852 | N45: 93.35102106 | P45: 0 | R45: 1 | S45: 93.35102106
A46: 44 | B46: Paul Graham | C46: =IFERROR(VLOOKUP(B46,INDIRECT("'"&$K$1&"'!"&"$C$2:$H$200"),2,FALSE),"") -> Pontypridd Roadents | D46: =IFERROR(VLOOKUP(B46,INDIRECT("'"&$K$1&"'!"&"$C$2:$H$200"),3,FALSE),"") -> M | E46: =IFERROR(VLOOKUP(B46,INDIRECT("'"&$K$1&"'!"&"$C$2:$H$200"),4,FALSE),"") -> MU40 | F46: =SUM(LARGE((H46,J46,L46,N46,P46),{1,2,3,4,5})) -> 91.77121771 | H46: 0 | J46: 0 | K46: 2.036805556 | L46: 91.77121771 | N46: 0 | P46: 0 | R46: 1 | S46: 91.77121771
A47: 45 | B47: Emma Bayliss | C47: =IFERROR(VLOOKUP(B47,INDIRECT("'"&$M$1&"'!"&"$C$2:$H$400"),2,FALSE),"") -> Mynydd Du | D47: =IFERROR(VLOOKUP(B47,INDIRECT("'"&$M$1&"'!"&"$C$2:$H$400"),3,FALSE),"") -> F | E47: =IFERROR(VLOOKUP(B47,INDIRECT("'"&$M$1&"'!"&"$C$2:$H$400"),4,FALSE),"") -> FU40 | F47: =SUM(LARGE((H47,J47,L47,N47,P47),{1,2,3,4,5})) -> 91.09985528 | H47: 0 | J47: 0 | L47: 0 | M47: 0.03135416667 | N47: 91.09985528 | P47: 0 | R47: 1 | S47: 91.09985528
A48: 46 | B48: Roger Milss | C48: =IFERROR(VLOOKUP(B48,INDIRECT("'"&$M$1&"'!"&"$C$2:$H$400"),2,FALSE),"") -> Mynydd Du/Vegan Runners | D48: =IFERROR(VLOOKUP(B48,INDIRECT("'"&$M$1&"'!"&"$C$2:$H$400"),3,FALSE),"") -> M | E48: =IFERROR(VLOOKUP(B48,INDIRECT("'"&$M$1&"'!"&"$C$2:$H$400"),4,FALSE),"") -> MO40 | F48: =SUM(LARGE((H48,J48,L48,N48,P48),{1,2,3,4,5})) -> 90.53706384 | H48: 0 | J48: 0 | L48: 0 | M48: 0.0315162037 | N48: 90.53706384 | P48: 0 | R48: 1 | S48: 90.53706384
A49: 47 | B49: Mark Matthews | C49: =IFERROR(VLOOKUP(B49,INDIRECT("'"&$M$1&"'!"&"$C$2:$H$400"),2,FALSE),"") -> Forest of Dean AC | D49: =IFERROR(VLOOKUP(B49,INDIRECT("'"&$M$1&"'!"&"$C$2:$H$400"),3,FALSE),"") -> M | E49: =IFERROR(VLOOKUP(B49,INDIRECT("'"&$M$1&"'!"&"$C$2:$H$400"),4,FALSE),"") -> MO40 | F49: =SUM(LARGE((H49,J49,L49,N49,P49),{1,2,3,4,5})) -> 90.13506995 | H49: 0 | J49: 0 | L49: 0 | M49: 0.03163194444 | N49: 90.13506995 | P49: 0 | R49: 1 | S49: 90.13506995
A50: 48 | B50: Alun Wood | C50: =IFERROR(VLOOKUP(B50,INDIRECT("'"&$K$1&"'!"&"$C$2:$H$200"),2,FALSE),"") -> Mynydd Du | D50: =IFERROR(VLOOKUP(B50,INDIRECT("'"&$K$1&"'!"&"$C$2:$H$200"),3,FALSE),"") -> M | E50: =IFERROR(VLOOKUP(B50,INDIRECT("'"&$K$1&"'!"&"$C$2:$H$200"),4,FALSE),"") -> MU40 | F50: =SUM(LARGE((H50,J50,L50,N50,P50),{1,2,3,4,5})) -> 89.5202952 | H50: 0 | J50: 0 | K50: 2.079166667 | L50: 89.5202952 | N50: 0 | P50: 0 | R50: 1 | S50: 89.5202952
A51: 49 | B51: Gareth Crossway | C51: =IFERROR(VLOOKUP(B51,INDIRECT("'"&$K$1&"'!"&"$C$2:$H$200"),2,FALSE),"") -> Unattached | D51: =IFERROR(VLOOKUP(B51,INDIRECT("'"&$K$1&"'!"&"$C$2:$H$200"),3,FALSE),"") -> M | E51: =IFERROR(VLOOKUP(B51,INDIRECT("'"&$K$1&"'!"&"$C$2:$H$200"),4,FALSE),"") -> MU40 | F51: =SUM(LARGE((H51,J51,L51,N51,P51),{1,2,3,4,5})) -> 89.33579336 | H51: 0 | J51: 0 | K51: 2.082638889 | L51: 89.33579336 | N51: 0 | P51: 0 | R51: 1 | S51: 89.33579336
A52: 50 | B52: Lee Mills | C52: =IFERROR(VLOOKUP(B52,INDIRECT("'"&$K$1&"'!"&"$C$2:$H$200"),2,FALSE),"") -> Islwyn RC | D52: =IFERROR(VLOOKUP(B52,INDIRECT("'"&$K$1&"'!"&"$C$2:$H$200"),3,FALSE),"") -> M | E52: =IFERROR(VLOOKUP(B52,INDIRECT("'"&$K$1&"'!"&"$C$2:$H$200"),4,FALSE),"") -> MU40 | F52: =SUM(LARGE((H52,J52,L52,N52,P52),{1,2,3,4,5})) -> 89.00369004 | H52: 0 | J52: 0 | K52: 2.088888889 | L52: 89.00369004 | N52: 0 | P52: 0 | R52: 1 | S52: 89.00369004
A53: 51 | B53: Justin Ross | C53: =IFERROR(VLOOKUP(B53,INDIRECT("'"&$M$1&"'!"&"$C$2:$H$400"),2,FALSE),"") -> Mynydd Du | D53: =IFERROR(VLOOKUP(B53,INDIRECT("'"&$M$1&"'!"&"$C$2:$H$400"),3,FALSE),"") -> M | E53: =IFERROR(VLOOKUP(B53,INDIRECT("'"&$M$1&"'!"&"$C$2:$H$400"),4,FALSE),"") -> MU40 | F53: =SUM(LARGE((H53,J53,L53,N53,P53),{1,2,3,4,5})) -> 88.56729378 | H53: 0 | J53: 0 | L53: 0 | M53: 0.03208333333 | N53: 88.56729378 | P53: 0 | R53: 1 | S53: 88.56729378
A54: 52 | B54: Dafydd Lambeth | C54: =IFERROR(VLOOKUP(B54,INDIRECT("'"&$K$1&"'!"&"$C$2:$H$200"),2,FALSE),"") -> Islwyn RC | D54: =IFERROR(VLOOKUP(B54,INDIRECT("'"&$K$1&"'!"&"$C$2:$H$200"),3,FALSE),"") -> M | E54: =IFERROR(VLOOKUP(B54,INDIRECT("'"&$K$1&"'!"&"$C$2:$H$200"),4,FALSE),"") -> MO40 | F54: =SUM(LARGE((H54,J54,L54,N54,P54),{1,2,3,4,5})) -> 88.04428044 | H54: 0 | J54: 0 | K54: 2.106944444 | L54: 88.04428044 | N54: 0 | P54: 0 | R54: 1 | S54: 88.04428044
A55: 53 | B55: Peter Coles | C55: =IFERROR(VLOOKUP(B55,INDIRECT("'"&$K$1&"'!"&"$C$2:$H$200"),2,FALSE),"") -> Pontypridd Roadents | D55: =IFERROR(VLOOKUP(B55,INDIRECT("'"&$K$1&"'!"&"$C$2:$H$200"),3,FALSE),"") -> M | E55: =IFERROR(VLOOKUP(B55,INDIRECT("'"&$K$1&"'!"&"$C$2:$H$200"),4,FALSE),"") -> MO50 | F55: =SUM(LARGE((H55,J55,L55,N55,P55),{1,2,3,4,5})) -> 87.08487085 | H55: 0 | J55: 0 | K55: 2.125 | L55: 87.08487085 | N55: 0 | P55: 0 | R55: 1 | S55: 87.08487085
A56: 54 | B56: Clara Evans | C56: =IFERROR(VLOOKUP(B56,INDIRECT("'"&$K$1&"'!"&"$C$2:$H$200"),2,FALSE),"") -> Pontypridd Roadents | D56: =IFERROR(VLOOKUP(B56,INDIRECT("'"&$K$1&"'!"&"$C$2:$H$200"),3,FALSE),"") -> F | E56: =IFERROR(VLOOKUP(B56,INDIRECT("'"&$K$1&"'!"&"$C$2:$H$200"),4,FALSE),"") -> FU40 | F56: =SUM(LARGE((H56,J56,L56,N56,P56),{1,2,3,4,5})) -> 86.7896679 | H56: 0 | J56: 0 | K56: 2.130555556 | L56: 86.7896679 | N56: 0 | P56: 0 | R56: 1 | S56: 86.7896679
A57: 55 | B57: Owen Morris | C57: =IFERROR(VLOOKUP(B57,INDIRECT("'"&$K$1&"'!"&"$C$2:$H$200"),2,FALSE),"") -> Unattached | D57: =IFERROR(VLOOKUP(B57,INDIRECT("'"&$K$1&"'!"&"$C$2:$H$200"),3,FALSE),"") -> M | E57: =IFERROR(VLOOKUP(B57,INDIRECT("'"&$K$1&"'!"&"$C$2:$H$200"),4,FALSE),"") -> MU40 | F57: =SUM(LARGE((H57,J57,L57,N57,P57),{1,2,3,4,5})) -> 86.38376384 | H57: 0 | J57: 0 | K57: 2.138194444 | L57: 86.38376384 | N57: 0 | P57: 0 | R57: 1 | S57: 86.38376384
A58: 56 | B58: Hywel James | C58: =IFERROR(VLOOKUP(B58,INDIRECT("'"&$M$1&"'!"&"$C$2:$H$400"),2,FALSE),"") -> U/A | D58: =IFERROR(VLOOKUP(B58,INDIRECT("'"&$M$1&"'!"&"$C$2:$H$400"),3,FALSE),"") -> M | E58: =IFERROR(VLOOKUP(B58,INDIRECT("'"&$M$1&"'!"&"$C$2:$H$400"),4,FALSE),"") -> MU40 | F58: =SUM(LARGE((H58,J58,L58,N58,P58),{1,2,3,4,5})) -> 86.15533044 | H58: 0 | J58: 0 | L58: 0 | M58: 0.03277777778 | N58: 86.15533044 | P58: 0 | R58: 1 | S58: 86.15533044
A59: 57 | B59: Philip Williams | C59: =IFERROR(VLOOKUP(B59,INDIRECT("'"&$K$1&"'!"&"$C$2:$H$200"),2,FALSE),"") -> Pontypridd Roadents | D59: =IFERROR(VLOOKUP(B59,INDIRECT("'"&$K$1&"'!"&"$C$2:$H$200"),3,FALSE),"") -> M | E59: =IFERROR(VLOOKUP(B59,INDIRECT("'"&$K$1&"'!"&"$C$2:$H$200"),4,FALSE),"") -> MU40 | F59: =SUM(LARGE((H59,J59,L59,N59,P59),{1,2,3,4,5})) -> 85.75645756 | H59: 0 | J59: 0 | K59: 2.15 | L59: 85.75645756 | N59: 0 | P59: 0 | R59: 1 | S59: 85.75645756
A60: 58 | B60: Jon Thiel | C60: =IFERROR(VLOOKUP(B60,INDIRECT("'"&$M$1&"'!"&"$C$2:$H$400"),2,FALSE),"") -> Bridgend AC | D60: =IFERROR(VLOOKUP(B60,INDIRECT("'"&$M$1&"'!"&"$C$2:$H$400"),3,FALSE),"") -> M | E60: =IFERROR(VLOOKUP(B60,INDIRECT("'"&$M$1&"'!"&"$C$2:$H$400"),4,FALSE),"") -> MU40 | F60: =SUM(LARGE((H60,J60,L60,N60,P60),{1,2,3,4,5})) -> 85.5523396 | H60: 0 | J60: 0 | L60: 0 | M60: 0.03295138889 | N60: 85.5523396 | P60: 0 | R60: 1 | S60: 85.5523396
A61: 59 | B61: Rob Sage | C61: =IFERROR(VLOOKUP(B61,INDIRECT("'"&$K$1&"'!"&"$C$2:$H$200"),2,FALSE),"") -> Les Croupiers RC | D61: =IFERROR(VLOOKUP(B61,INDIRECT("'"&$K$1&"'!"&"$C$2:$H$200"),3,FALSE),"") -> M | E61: =IFERROR(VLOOKUP(B61,INDIRECT("'"&$K$1&"'!"&"$C$2:$H$200"),4,FALSE),"") -> MU40 | F61: =SUM(LARGE((H61,J61,L61,N61,P61),{1,2,3,4,5})) -> 85.53505535 | H61: 0 | J61: 0 | K61: 2.154166667 | L61: 85.53505535 | N61: 0 | P61: 0 | R61: 1 | S61: 85.53505535
A62: 60 | B62: Andrew Jones | C62: Unattached | D62: M | E62: MO40 | F62: =SUM(LARGE((H62,J62,L62,N62,P62),{1,2,3,4,5})) -> 84.53874539 | H62: 0 | J62: 0 | K62: 2.172916667 | L62: 84.53874539 | N62: 0 | P62: 0 | R62: 1 | S62: 84.53874539
A63: 61 | B63: Neil Jones | C63: Pontyclun Road Runners | D63: M | E63: MU40 | F63: =SUM(LARGE((H63,J63,L63,N63,P63),{1,2,3,4,5})) -> 83.94833948 | H63: 0 | J63: 0 | K63: 2.184027778 | L63: 83.94833948 | N63: 0 | P63: 0 | R63: 1 | S63: 83.94833948
A64: 62 | B64: Oliver Burrows | C64: Unattached | D64: M | E64: MU40 | F64: =SUM(LARGE((H64,J64,L64,N64,P64),{1,2,3,4,5})) -> 83.32103321 | H64: 0 | J64: 0 | K64: 2.195833333 | L64: 83.32103321 | N64: 0 | P64: 0 | R64: 1 | S64: 83.32103321
A65: 63 | B65: Richard Jackson-Hookins | C65: Penarth & Dinas Runners | D65: M | E65: MU40 | F65: =SUM(LARGE((H65,J65,L65,N65,P65),{1,2,3,4,5})) -> 83.2103321 | H65: 0 | J65: 0 | K65: 2.197916667 | L65: 83.2103321 | N65: 0 | P65: 0 | R65: 1 | S65: 83.2103321
A66: 64 | B66: Gethin Powell | C66: White Rock Runners | D66: M | E66: MU40 | F66: =SUM(LARGE((H66,J66,L66,N66,P66),{1,2,3,4,5})) -> 83.17343173 | H66: 0 | J66: 0 | K66: 2.198611111 | L66: 83.17343173 | N66: 0 | P66: 0 | R66: 1 | S66: 83.17343173
A67: =ROW(A65) -> 65 | B67: Anthony Bannon | C67: San Domenico RC | D67: M | E67: MU40 | F67: =SUM(LARGE((H67,J67,L67,N67,P67),{1,2,3,4,5})) -> 83.06273063 | G67: =IFERROR(VLOOKUP(B67,INDIRECT("'"&$G$1&"'!"&"$C$2:$H$200"),5,FALSE),"") ->  | H67: =IFERROR(VLOOKUP(B67,INDIRECT("'"&$G$1&"'!"&"$C$2:$H$200"),6,FALSE),0) -> 0 | I67: =IFERROR(VLOOKUP(B67,INDIRECT("'"&$I$1&"'!"&"$C$2:$G$200"),5,FALSE),"") ->  | J67: =IFERROR(VLOOKUP(B67,INDIRECT("'"&$I$1&"'!"&"$C$2:$H$200"),6,FALSE),0) -> 0 | K67: =IFERROR(VLOOKUP(B67,INDIRECT("'"&$K$1&"'!"&"$C$2:$G$400"),5,FALSE),"") -> 2.200694444 | L67: =IFERROR(VLOOKUP(B67,INDIRECT("'"&$K$1&"'!"&"$C$2:$H$400"),6,FALSE),0) -> 83.06273063 | M67: =IFERROR(VLOOKUP(B67,INDIRECT("'"&$M$1&"'!"&"$C$2:$H$200"),5,FALSE),"") ->  | N67: =IFERROR(VLOOKUP(B67,INDIRECT("'"&$M$1&"'!"&"$C$2:$H$200"),6,FALSE),0) -> 0 | O67: =IFERROR(VLOOKUP(B67,INDIRECT("'"&$O$1&"'!"&"$C$2:$G$200"),4,FALSE),"") ->  | P67: =IFERROR(VLOOKUP(B67,INDIRECT("'"&$O$1&"'!"&"$C$2:$G$200"),5,FALSE),0) -> 0 | Q67: =IFERROR(VLOOKUP(B67,INDIRECT("'"&$Q$1&"'!"&"$C$2:$G$200"),4,FALSE),"") ->  | R67: =6-COUNTIF(G67:Q67,"") -> 1 | S67: =F67/IF(R67>4,5,R67) -> 83.06273063
A68: 66 | B68: Karl James | C68: Neath Harriers | D68: M | E68: MO50 | F68: =SUM(LARGE((H68,J68,L68,N68,P68),{1,2,3,4,5})) -> 82.73062731 | H68: 0 | J68: 0 | K68: 2.206944444 | L68: 82.73062731 | N68: 0 | P68: 0 | R68: 1 | S68: 82.73062731
A69: 67 | B69: Gareth Watkins | C69: =IFERROR(VLOOKUP(B69,INDIRECT("'"&$M$1&"'!"&"$C$2:$H$400"),2,FALSE),"") -> MDC | D69: =IFERROR(VLOOKUP(B69,INDIRECT("'"&$M$1&"'!"&"$C$2:$H$400"),3,FALSE),"") -> M | E69: =IFERROR(VLOOKUP(B69,INDIRECT("'"&$M$1&"'!"&"$C$2:$H$400"),4,FALSE),"") -> MO60 | F69: =SUM(LARGE((H69,J69,L69,N69,P69),{1,2,3,4,5})) -> 82.57758482 | H69: 0 | J69: 0 | L69: 0 | M69: 0.03380787037 | N69: 82.57758482 | P69: 0 | R69: 1 | S69: 82.57758482
A70: 68 | B70: Dave Buchanan | C70: =IFERROR(VLOOKUP(B70,INDIRECT("'"&$K$1&"'!"&"$C$2:$H$200"),2,FALSE),"") -> San Domenico RC | D70: =IFERROR(VLOOKUP(B70,INDIRECT("'"&$K$1&"'!"&"$C$2:$H$200"),3,FALSE),"") -> M | E70: =IFERROR(VLOOKUP(B70,INDIRECT("'"&$K$1&"'!"&"$C$2:$H$200"),4,FALSE),"") -> MU40 | F70: =SUM(LARGE((H70,J70,L70,N70,P70),{1,2,3,4,5})) -> 82.39852399 | H70: 0 | J70: 0 | K70: 2.213194444 | L70: 82.39852399 | N70: 0 | P70: 0 | R70: 1 | S70: 82.39852399
A71: 69 | B71: Malcom O'Brien | C71: =IFERROR(VLOOKUP(B71,INDIRECT("'"&$K$1&"'!"&"$C$2:$H$200"),2,FALSE),"") -> Unattached | D71: =IFERROR(VLOOKUP(B71,INDIRECT("'"&$K$1&"'!"&"$C$2:$H$200"),3,FALSE),"") -> M | E71: =IFERROR(VLOOKUP(B71,INDIRECT("'"&$K$1&"'!"&"$C$2:$H$200"),4,FALSE),"") -> MU40 | F71: =SUM(LARGE((H71,J71,L71,N71,P71),{1,2,3,4,5})) -> 82.32472325 | H71: 0 | J71: 0 | K71: 2.214583333 | L71: 82.32472325 | N71: 0 | P71: 0 | R71: 1 | S71: 82.32472325
A72: 70 | B72: Simon Thomas | C72: =IFERROR(VLOOKUP(B72,INDIRECT("'"&$K$1&"'!"&"$C$2:$H$200"),2,FALSE),"") -> San Domenico RC | D72: =IFERROR(VLOOKUP(B72,INDIRECT("'"&$K$1&"'!"&"$C$2:$H$200"),3,FALSE),"") -> M | E72: =IFERROR(VLOOKUP(B72,INDIRECT("'"&$K$1&"'!"&"$C$2:$H$200"),4,FALSE),"") -> MO40 | F72: =SUM(LARGE((H72,J72,L72,N72,P72),{1,2,3,4,5})) -> 80.4797048 | H72: 0 | J72: 0 | K72: 2.249305556 | L72: 80.4797048 | N72: 0 | P72: 0 | R72: 1 | S72: 80.4797048
A73: 71 | B73: Jonathon Like | C73: =IFERROR(VLOOKUP(B73,INDIRECT("'"&$G$1&"'!"&"$C$2:$H$200"),2,FALSE),"") -> U/A | D73: =IFERROR(VLOOKUP(B73,INDIRECT("'"&$G$1&"'!"&"$C$2:$H$200"),3,FALSE),"") -> M | E73: =IFERROR(VLOOKUP(B73,INDIRECT("'"&$G$1&"'!"&"$C$2:$H$200"),4,FALSE),"") -> MU40 | F73: =SUM(LARGE((H73,J73,L73,N73,P73),{1,2,3,4,5})) -> 80.31800602 | G73: 00:18:34 | H73: 80.31800602 | J73: 0 | L73: 0 | N73: 0 | P73: 0 | R73: 1 | S73: 80.31800602
A74: 72 | B74: Rhodri Evans | C74: =IFERROR(VLOOKUP(B74,INDIRECT("'"&$K$1&"'!"&"$C$2:$H$200"),2,FALSE),"") -> Pontypridd Roadents | D74: =IFERROR(VLOOKUP(B74,INDIRECT("'"&$K$1&"'!"&"$C$2:$H$200"),3,FALSE),"") -> M | E74: =IFERROR(VLOOKUP(B74,INDIRECT("'"&$K$1&"'!"&"$C$2:$H$200"),4,FALSE),"") -> MO40 | F74: =SUM(LARGE((H74,J74,L74,N74,P74),{1,2,3,4,5})) -> 79.96309963 | H74: 0 | J74: 0 | K74: 2.259027778 | L74: 79.96309963 | N74: 0 | P74: 0 | R74: 1 | S74: 79.96309963
A75: 73 | B75: Matthew Forde | C75: Unattached | D75: M | E75: MU40 | F75: =SUM(LARGE((H75,J75,L75,N75,P75),{1,2,3,4,5})) -> 79.85239852 | H75: 0 | J75: 0 | K75: 2.261111111 | L75: 79.85239852 | N75: 0 | P75: 0 | R75: 1 | S75: 79.85239852
A76: 74 | B76: Peter Turnbull | C76: Les Croupiers RC | D76: M | E76: MO50 | F76: =SUM(LARGE((H76,J76,L76,N76,P76),{1,2,3,4,5})) -> 79.5202952 | H76: 0 | J76: 0 | K76: 2.267361111 | L76: 79.5202952 | N76: 0 | P76: 0 | R76: 1 | S76: 79.5202952
A77: 75 | B77: Patrick Lees | C77: Cardiff Triathletes | D77: M | E77: MU40 | F77: =SUM(LARGE((H77,J77,L77,N77,P77),{1,2,3,4,5})) -> 79.33579336 | H77: 0 | J77: 0 | K77: 2.270833333 | L77: 79.33579336 | N77: 0 | P77: 0 | R77: 1 | S77: 79.33579336
A78: 76 | B78: Richard Self | C78: Les Croupiers RC | D78: M | E78: MO50 | F78: =SUM(LARGE((H78,J78,L78,N78,P78),{1,2,3,4,5})) -> 78.85608856 | H78: 0 | J78: 0 | K78: 2.279861111 | L78: 78.85608856 | N78: 0 | P78: 0 | R78: 1 | S78: 78.85608856
A79: 77 | B79: Daniel Thrift | C79: Unattached | D79: M | E79: MU40 | F79: =SUM(LARGE((H79,J79,L79,N79,P79),{1,2,3,4,5})) -> 78.81918819 | H79: 0 | J79: 0 | K79: 2.280555556 | L79: 78.81918819 | N79: 0 | P79: 0 | R79: 1 | S79: 78.81918819
A80: 78 | B80: Andy Jones | C80: Penarth & Dinas Runners | D80: M | E80: MU40 | F80: =SUM(LARGE((H80,J80,L80,N80,P80),{1,2,3,4,5})) -> 78.78228782 | H80: 0 | J80: 0 | K80: 2.28125 | L80: 78.78228782 | N80: 0 | P80: 0 | R80: 1 | S80: 78.78228782
A81: 79 | B81: Richard Cronin | C81: Mynyddwyr de Cymru | D81: M | E81: MU40 | F81: =SUM(LARGE((H81,J81,L81,N81,P81),{1,2,3,4,5})) -> 78.48708487 | H81: 0 | J81: 0 | K81: 2.286805556 | L81: 78.48708487 | N81: 0 | P81: 0 | R81: 1 | S81: 78.48708487
A82: 80 | B82: Katie Roby | C82: Mynyddwyr de Cymru | D82: F | E82: FU40 | F82: =SUM(LARGE((H82,J82,L82,N82,P82),{1,2,3,4,5})) -> 77.9704797 | H82: 0 | J82: 0 | K82: 2.296527778 | L82: 77.9704797 | N82: 0 | P82: 0 | R82: 1 | S82: 77.9704797
A83: 81 | B83: Paul Hayward | C83: Islwyn RC | D83: M | E83: MU40 | F83: =SUM(LARGE((H83,J83,L83,N83,P83),{1,2,3,4,5})) -> 77.82287823 | H83: 0 | J83: 0 | K83: 2.299305556 | L83: 77.82287823 | N83: 0 | P83: 0 | R83: 1 | S83: 77.82287823
A84: 82 | B84: Ben Watkins | C84: =IFERROR(VLOOKUP(B84,INDIRECT("'"&$M$1&"'!"&"$C$2:$H$400"),2,FALSE),"") -> Mynydd Du | D84: =IFERROR(VLOOKUP(B84,INDIRECT("'"&$M$1&"'!"&"$C$2:$H$400"),3,FALSE),"") -> M | E84: =IFERROR(VLOOKUP(B84,INDIRECT("'"&$M$1&"'!"&"$C$2:$H$400"),4,FALSE),"") -> MU40 | F84: =SUM(LARGE((H84,J84,L84,N84,P84),{1,2,3,4,5})) -> 77.79385753 | H84: 0 | J84: 0 | L84: 0 | M84: 0.03518518519 | N84: 77.79385753 | P84: 0 | R84: 1 | S84: 77.79385753
A85: 83 | B85: Gareth Huw Griffiths | C85: =IFERROR(VLOOKUP(B85,INDIRECT("'"&$K$1&"'!"&"$C$2:$H$200"),2,FALSE),"") -> Unattached | D85: =IFERROR(VLOOKUP(B85,INDIRECT("'"&$K$1&"'!"&"$C$2:$H$200"),3,FALSE),"") -> M | E85: =IFERROR(VLOOKUP(B85,INDIRECT("'"&$K$1&"'!"&"$C$2:$H$200"),4,FALSE),"") -> MO40 | F85: =SUM(LARGE((H85,J85,L85,N85,P85),{1,2,3,4,5})) -> 77.67527675 | H85: 0 | J85: 0 | K85: 2.302083333 | L85: 77.67527675 | N85: 0 | P85: 0 | R85: 1 | S85: 77.67527675
A86: 84 | B86: Mark Saunders | C86: =IFERROR(VLOOKUP(B86,INDIRECT("'"&$K$1&"'!"&"$C$2:$H$200"),2,FALSE),"") -> Mynyddwyr de Cymru | D86: =IFERROR(VLOOKUP(B86,INDIRECT("'"&$K$1&"'!"&"$C$2:$H$200"),3,FALSE),"") -> M | E86: =IFERROR(VLOOKUP(B86,INDIRECT("'"&$K$1&"'!"&"$C$2:$H$200"),4,FALSE),"") -> MO50 | F86: =SUM(LARGE((H86,J86,L86,N86,P86),{1,2,3,4,5})) -> 77.3800738 | H86: 0 | J86: 0 | K86: 2.307638889 | L86: 77.3800738 | N86: 0 | P86: 0 | R86: 1 | S86: 77.3800738
A87: 85 | B87: Ceri Davies | C87: =IFERROR(VLOOKUP(B87,INDIRECT("'"&$K$1&"'!"&"$C$2:$H$200"),2,FALSE),"") -> San Domenico RC | D87: =IFERROR(VLOOKUP(B87,INDIRECT("'"&$K$1&"'!"&"$C$2:$H$200"),3,FALSE),"") -> M | E87: =IFERROR(VLOOKUP(B87,INDIRECT("'"&$K$1&"'!"&"$C$2:$H$200"),4,FALSE),"") -> MO40 | F87: =SUM(LARGE((H87,J87,L87,N87,P87),{1,2,3,4,5})) -> 76.93726937 | H87: 0 | J87: 0 | K87: 2.315972222 | L87: 76.93726937 | N87: 0 | P87: 0 | R87: 1 | S87: 76.93726937
A88: 86 | B88: Elio Lepore | C88: =IFERROR(VLOOKUP(B88,INDIRECT("'"&$K$1&"'!"&"$C$2:$H$200"),2,FALSE),"") -> Les Croupiers RC | D88: =IFERROR(VLOOKUP(B88,INDIRECT("'"&$K$1&"'!"&"$C$2:$H$200"),3,FALSE),"") -> M | E88: =IFERROR(VLOOKUP(B88,INDIRECT("'"&$K$1&"'!"&"$C$2:$H$200"),4,FALSE),"") -> MO60 | F88: =SUM(LARGE((H88,J88,L88,N88,P88),{1,2,3,4,5})) -> 76.01476015 | H88: 0 | J88: 0 | K88: 2.333333333 | L88: 76.01476015 | N88: 0 | P88: 0 | R88: 1 | S88: 76.01476015
A89: 87 | B89: Peter Havard | C89: =IFERROR(VLOOKUP(B89,INDIRECT("'"&$M$1&"'!"&"$C$2:$H$400"),2,FALSE),"") -> MDC | D89: =IFERROR(VLOOKUP(B89,INDIRECT("'"&$M$1&"'!"&"$C$2:$H$400"),3,FALSE),"") -> M | E89: =IFERROR(VLOOKUP(B89,INDIRECT("'"&$M$1&"'!"&"$C$2:$H$400"),4,FALSE),"") -> MO60 | F89: =SUM(LARGE((H89,J89,L89,N89,P89),{1,2,3,4,5})) -> 75.82408747 | H89: 0 | J89: 0 | L89: 0 | M89: 0.03575231481 | N89: 75.82408747 | P89: 0 | R89: 1 | S89: 75.82408747
A90: 88 | B90: Paul Chester | C90: =IFERROR(VLOOKUP(B90,INDIRECT("'"&$K$1&"'!"&"$C$2:$H$200"),2,FALSE),"") -> WFRA | D90: =IFERROR(VLOOKUP(B90,INDIRECT("'"&$K$1&"'!"&"$C$2:$H$200"),3,FALSE),"") -> M | E90: =IFERROR(VLOOKUP(B90,INDIRECT("'"&$K$1&"'!"&"$C$2:$H$200"),4,FALSE),"") -> MO40 | F90: =SUM(LARGE((H90,J90,L90,N90,P90),{1,2,3,4,5})) -> 75.68265683 | H90: 0 | J90: 0 | K90: 2.339583333 | L90: 75.68265683 | N90: 0 | P90: 0 | R90: 1 | S90: 75.68265683
A91: 89 | B91: Darren Jones | C91: Cardiff Harlequins | D91: M | E91: MU40 | F91: =SUM(LARGE((H91,J91,L91,N91,P91),{1,2,3,4,5})) -> 75.12915129 | H91: 0 | J91: 0 | K91: 2.35 | L91: 75.12915129 | N91: 0 | P91: 0 | R91: 1 | S91: 75.12915129
A92: 90 | B92: Liam Osborne | C92: Pontypridd Roadents | D92: M | E92: MU40 | F92: =SUM(LARGE((H92,J92,L92,N92,P92),{1,2,3,4,5})) -> 74.20664207 | H92: 0 | J92: 0 | K92: 2.367361111 | L92: 74.20664207 | N92: 0 | P92: 0 | R92: 1 | S92: 74.20664207
A93: 91 | B93: Niki Morgan | C93: Chepstow Harriers | D93: F | E93: FO40 | F93: =SUM(LARGE((H93,J93,L93,N93,P93),{1,2,3,4,5})) -> 73.91143911 | H93: 0 | J93: 0 | K93: 2.372916667 | L93: 73.91143911 | N93: 0 | P93: 0 | R93: 1 | S93: 73.91143911
A94: 92 | B94: Mark Durkin | C94: Penarth & Dinas Runners | D94: M | E94: MU40 | F94: =SUM(LARGE((H94,J94,L94,N94,P94),{1,2,3,4,5})) -> 73.83763838 | H94: 0 | J94: 0 | K94: 2.374305556 | L94: 73.83763838 | N94: 0 | P94: 0 | R94: 1 | S94: 73.83763838
A95: 93 | B95: Andrew Evans | C95: Unattached | D95: M | E95: MO40 | F95: =SUM(LARGE((H95,J95,L95,N95,P95),{1,2,3,4,5})) -> 73.76383764 | H95: 0 | J95: 0 | K95: 2.375694444 | L95: 73.76383764 | N95: 0 | P95: 0 | R95: 1 | S95: 73.76383764
A96: 94 | B96: Fraser Stephens | C96: =IFERROR(VLOOKUP(B96,INDIRECT("'"&$M$1&"'!"&"$C$2:$H$400"),2,FALSE),"") -> SWOC | D96: =IFERROR(VLOOKUP(B96,INDIRECT("'"&$M$1&"'!"&"$C$2:$H$400"),3,FALSE),"") -> M | E96: =IFERROR(VLOOKUP(B96,INDIRECT("'"&$M$1&"'!"&"$C$2:$H$400"),4,FALSE),"") -> MO40 | F96: =SUM(LARGE((H96,J96,L96,N96,P96),{1,2,3,4,5})) -> 73.61312108 | H96: 0 | J96: 0 | L96: 0 | M96: 0.03638888889 | N96: 73.61312108 | P96: 0 | R96: 1 | S96: 73.61312108
A97: 95 | B97: Lee McMeeking | C97: =IFERROR(VLOOKUP(B97,INDIRECT("'"&$K$1&"'!"&"$C$2:$H$200"),2,FALSE),"") -> Unattached | D97: =IFERROR(VLOOKUP(B97,INDIRECT("'"&$K$1&"'!"&"$C$2:$H$200"),3,FALSE),"") -> M | E97: =IFERROR(VLOOKUP(B97,INDIRECT("'"&$K$1&"'!"&"$C$2:$H$200"),4,FALSE),"") -> MO40 | F97: =SUM(LARGE((H97,J97,L97,N97,P97),{1,2,3,4,5})) -> 73.2103321 | H97: 0 | J97: 0 | K97: 2.386111111 | L97: 73.2103321 | N97: 0 | P97: 0 | R97: 1 | S97: 73.2103321
A98: 96 | B98: Ian Ogilvie | C98: =IFERROR(VLOOKUP(B98,INDIRECT("'"&$K$1&"'!"&"$C$2:$H$200"),2,FALSE),"") -> Brackla Harriers | D98: =IFERROR(VLOOKUP(B98,INDIRECT("'"&$K$1&"'!"&"$C$2:$H$200"),3,FALSE),"") -> M | E98: =IFERROR(VLOOKUP(B98,INDIRECT("'"&$K$1&"'!"&"$C$2:$H$200"),4,FALSE),"") -> MO40 | F98: =SUM(LARGE((H98,J98,L98,N98,P98),{1,2,3,4,5})) -> 72.69372694 | H98: 0 | J98: 0 | K98: 2.395833333 | L98: 72.69372694 | N98: 0 | P98: 0 | R98: 1 | S98: 72.69372694
A99: 97 | B99: Richard Jones | C99: =IFERROR(VLOOKUP(B99,INDIRECT("'"&$K$1&"'!"&"$C$2:$H$200"),2,FALSE),"") -> Unattached | D99: =IFERROR(VLOOKUP(B99,INDIRECT("'"&$K$1&"'!"&"$C$2:$H$200"),3,FALSE),"") -> M | E99: =IFERROR(VLOOKUP(B99,INDIRECT("'"&$K$1&"'!"&"$C$2:$H$200"),4,FALSE),"") -> MU40 | F99: =SUM(LARGE((H99,J99,L99,N99,P99),{1,2,3,4,5})) -> 72.54612546 | H99: 0 | J99: 0 | K99: 2.398611111 | L99: 72.54612546 | N99: 0 | P99: 0 | R99: 1 | S99: 72.54612546
A100: 98 | B100: David Morris | C100: =IFERROR(VLOOKUP(B100,INDIRECT("'"&$K$1&"'!"&"$C$2:$H$200"),2,FALSE),"") -> Unattached | D100: =IFERROR(VLOOKUP(B100,INDIRECT("'"&$K$1&"'!"&"$C$2:$H$200"),3,FALSE),"") -> M | E100: =IFERROR(VLOOKUP(B100,INDIRECT("'"&$K$1&"'!"&"$C$2:$H$200"),4,FALSE),"") -> MU40 | F100: =SUM(LARGE((H100,J100,L100,N100,P100),{1,2,3,4,5})) -> 72.32472325 | H100: 0 | J100: 0 | K100: 2.402777778 | L100: 72.32472325 | N100: 0 | P100: 0 | R100: 1 | S100: 72.32472325
A101: 99 | B101: Laura Tinwell | C101: =IFERROR(VLOOKUP(B101,INDIRECT("'"&$K$1&"'!"&"$C$2:$H$200"),2,FALSE),"") -> Pontypridd Roadents | D101: =IFERROR(VLOOKUP(B101,INDIRECT("'"&$K$1&"'!"&"$C$2:$H$200"),3,FALSE),"") -> F | E101: =IFERROR(VLOOKUP(B101,INDIRECT("'"&$K$1&"'!"&"$C$2:$H$200"),4,FALSE),"") -> FU40 | F101: =SUM(LARGE((H101,J101,L101,N101,P101),{1,2,3,4,5})) -> 72.17712177 | H101: 0 | J101: 0 | K101: 2.405555556 | L101: 72.17712177 | N101: 0 | P101: 0 | R101: 1 | S101: 72.17712177
A102: 100 | B102: Gary Gunner | C102: =IFERROR(VLOOKUP(B102,INDIRECT("'"&$G$1&"'!"&"$C$2:$H$200"),2,FALSE),"") -> Croft Ambrey | D102: =IFERROR(VLOOKUP(B102,INDIRECT("'"&$G$1&"'!"&"$C$2:$H$200"),3,FALSE),"") -> M | E102: =IFERROR(VLOOKUP(B102,INDIRECT("'"&$G$1&"'!"&"$C$2:$H$200"),4,FALSE),"") -> M070 | F102: =SUM(LARGE((H102,J102,L102,N102,P102),{1,2,3,4,5})) -> 72.15298668 | G102: 00:19:50 | H102: 72.15298668 | J102: 0 | L102: 0 | N102: 0 | P102: 0 | R102: 1 | S102: 72.15298668
A103: 101 | B103: Glyn Sansom | C103: =IFERROR(VLOOKUP(B103,INDIRECT("'"&$K$1&"'!"&"$C$2:$H$200"),2,FALSE),"") -> San Domenico RC | D103: =IFERROR(VLOOKUP(B103,INDIRECT("'"&$K$1&"'!"&"$C$2:$H$200"),3,FALSE),"") -> M | E103: =IFERROR(VLOOKUP(B103,INDIRECT("'"&$K$1&"'!"&"$C$2:$H$200"),4,FALSE),"") -> MO50 | F103: =SUM(LARGE((H103,J103,L103,N103,P103),{1,2,3,4,5})) -> 71.80811808 | H103: 0 | J103: 0 | K103: 2.4125 | L103: 71.80811808 | N103: 0 | P103: 0 | R103: 1 | S103: 71.80811808
A104: 102 | B104: Geraint Jenkins | C104: Port Talbot Harriers | D104: M | E104: MO40 | F104: =SUM(LARGE((H104,J104,L104,N104,P104),{1,2,3,4,5})) -> 71.58671587 | H104: 0 | J104: 0 | K104: 2.416666667 | L104: 71.58671587 | N104: 0 | P104: 0 | R104: 1 | S104: 71.58671587
A105: 103 | B105: Nick Denny | C105: Pontypridd Roadents | D105: M | E105: MU40 | F105: =SUM(LARGE((H105,J105,L105,N105,P105),{1,2,3,4,5})) -> 71.43911439 | H105: 0 | J105: 0 | K105: 2.419444444 | L105: 71.43911439 | N105: 0 | P105: 0 | R105: 1 | S105: 71.43911439
A106: 104 | B106: Alec Care | C106: San Domenico RC | D106: M | E106: MU40 | F106: =SUM(LARGE((H106,J106,L106,N106,P106),{1,2,3,4,5})) -> 70.55350554 | H106: 0 | J106: 0 | K106: 2.436111111 | L106: 70.55350554 | N106: 0 | P106: 0 | R106: 1 | S106: 70.55350554
A107: 105 | B107: Huw Pullen | C107: Unattached | D107: M | E107: MU40 | F107: =SUM(LARGE((H107,J107,L107,N107,P107),{1,2,3,4,5})) -> 70.4797048 | H107: 0 | J107: 0 | K107: 2.4375 | L107: 70.4797048 | N107: 0 | P107: 0 | R107: 1 | S107: 70.4797048
A108: 106 | B108: David Beard | C108: Unattached | D108: M | E108: MU40 | F108: =SUM(LARGE((H108,J108,L108,N108,P108),{1,2,3,4,5})) -> 70.25830258 | H108: 0 | J108: 0 | K108: 2.441666667 | L108: 70.25830258 | N108: 0 | P108: 0 | R108: 1 | S108: 70.25830258
A109: 107 | B109: Neil Grant | C109: Chepstow Harriers | D109: M | E109: MO60 | F109: =SUM(LARGE((H109,J109,L109,N109,P109),{1,2,3,4,5})) -> 70.11070111 | H109: 0 | J109: 0 | K109: 2.444444444 | L109: 70.11070111 | N109: 0 | P109: 0 | R109: 1 | S109: 70.11070111
A110: 108 | B110: Paul Cahill | C110: =IFERROR(VLOOKUP(B110,INDIRECT("'"&$M$1&"'!"&"$C$2:$H$400"),2,FALSE),"") -> U/A | D110: =IFERROR(VLOOKUP(B110,INDIRECT("'"&$M$1&"'!"&"$C$2:$H$400"),3,FALSE),"") -> M | E110: =IFERROR(VLOOKUP(B110,INDIRECT("'"&$M$1&"'!"&"$C$2:$H$400"),4,FALSE),"") -> MU40 | F110: =SUM(LARGE((H110,J110,L110,N110,P110),{1,2,3,4,5})) -> 70.07557485 | H110: 0 | J110: 0 | L110: 0 | M110: 0.03740740741 | N110: 70.07557485 | P110: 0 | R110: 1 | S110: 70.07557485
A111: 109 | B111: Carl Edwards | C111: =IFERROR(VLOOKUP(B111,INDIRECT("'"&$K$1&"'!"&"$C$2:$H$200"),2,FALSE),"") -> Pontypridd Roadents | D111: =IFERROR(VLOOKUP(B111,INDIRECT("'"&$K$1&"'!"&"$C$2:$H$200"),3,FALSE),"") -> M | E111: =IFERROR(VLOOKUP(B111,INDIRECT("'"&$K$1&"'!"&"$C$2:$H$200"),4,FALSE),"") -> MO40 | F111: =SUM(LARGE((H111,J111,L111,N111,P111),{1,2,3,4,5})) -> 69.81549815 | H111: 0 | J111: 0 | K111: 2.45 | L111: 69.81549815 | N111: 0 | P111: 0 | R111: 1 | S111: 69.81549815
A112: 110 | B112: Matthew Hooper | C112: Les Croupiers RC | D112: M | E112: MU40 | F112: =SUM(LARGE((H112,J112,L112,N112,P112),{1,2,3,4,5})) -> 69.74169742 | H112: 0 | J112: 0 | K112: 2.451388889 | L112: 69.74169742 | N112: 0 | P112: 0 | R112: 1 | S112: 69.74169742
A113: 111 | B113: Natalie Taylor | C113: Mynydd Du | D113: F | E113: FU40 | F113: =SUM(LARGE((H113,J113,L113,N113,P113),{1,2,3,4,5})) -> 69.66789668 | H113: 0 | J113: 0 | K113: 2.452777778 | L113: 69.66789668 | N113: 0 | P113: 0 | R113: 1 | S113: 69.66789668
A114: 112 | B114: Sean McNally | C114: Unattached | D114: M | E114: MU40 | F114: =SUM(LARGE((H114,J114,L114,N114,P114),{1,2,3,4,5})) -> 69.55719557 | H114: 0 | J114: 0 | K114: 2.454861111 | L114: 69.55719557 | N114: 0 | P114: 0 | R114: 1 | S114: 69.55719557
A115: 113 | B115: Elaine Ferguson | C115: Pontypridd Roadents | D115: F | E115: FU40 | F115: =SUM(LARGE((H115,J115,L115,N115,P115),{1,2,3,4,5})) -> 69.44649446 | H115: 0 | J115: 0 | K115: 2.456944444 | L115: 69.44649446 | N115: 0 | P115: 0 | R115: 1 | S115: 69.44649446
A116: 114 | B116: Jamie Bishop | C116: Pontypridd Roadents | D116: M | E116: MU40 | F116: =SUM(LARGE((H116,J116,L116,N116,P116),{1,2,3,4,5})) -> 69.15129151 | H116: 0 | J116: 0 | K116: 2.4625 | L116: 69.15129151 | N116: 0 | P116: 0 | R116: 1 | S116: 69.15129151
A117: 115 | B117: Simon Slinn | C117: Unattached | D117: M | E117: MU40 | F117: =SUM(LARGE((H117,J117,L117,N117,P117),{1,2,3,4,5})) -> 68.9298893 | H117: 0 | J117: 0 | K117: 2.466666667 | L117: 68.9298893 | N117: 0 | P117: 0 | R117: 1 | S117: 68.9298893
A118: 116 | B118: Rob McAllister | C118: Unattached | D118: M | E118: MU40 | F118: =SUM(LARGE((H118,J118,L118,N118,P118),{1,2,3,4,5})) -> 68.37638376 | H118: 0 | J118: 0 | K118: 2.477083333 | L118: 68.37638376 | N118: 0 | P118: 0 | R118: 1 | S118: 68.37638376
A119: 117 | B119: Nick Harris | C119: Cwm Ogwr RC | D119: M | E119: MU40 | F119: =SUM(LARGE((H119,J119,L119,N119,P119),{1,2,3,4,5})) -> 68.04428044 | H119: 0 | J119: 0 | K119: 2.483333333 | L119: 68.04428044 | N119: 0 | P119: 0 | R119: 1 | S119: 68.04428044
A120: 118 | B120: Robert Wilson | C120: Penarth & Dinas Runners | D120: M | E120: MO50 | F120: =SUM(LARGE((H120,J120,L120,N120,P120),{1,2,3,4,5})) -> 67.74907749 | H120: 0 | J120: 0 | K120: 2.488888889 | L120: 67.74907749 | N120: 0 | P120: 0 | R120: 1 | S120: 67.74907749
A121: 119 | B121: David Underhill | C121: Unattached | D121: M | E121: MU40 | F121: =SUM(LARGE((H121,J121,L121,N121,P121),{1,2,3,4,5})) -> 67.63837638 | H121: 0 | J121: 0 | K121: 2.490972222 | L121: 67.63837638 | N121: 0 | P121: 0 | R121: 1 | S121: 67.63837638
A122: 120 | B122: David Harden | C122: Unattached | D122: M | E122: MU40 | F122: =SUM(LARGE((H122,J122,L122,N122,P122),{1,2,3,4,5})) -> 67.34317343 | H122: 0 | J122: 0 | K122: 2.496527778 | L122: 67.34317343 | N122: 0 | P122: 0 | R122: 1 | S122: 67.34317343
A123: 121 | B123: Matthew Lynch | C123: Unattached | D123: M | E123: MO40 | F123: =SUM(LARGE((H123,J123,L123,N123,P123),{1,2,3,4,5})) -> 66.97416974 | H123: 0 | J123: 0 | K123: 2.503472222 | L123: 66.97416974 | N123: 0 | P123: 0 | R123: 1 | S123: 66.97416974
A124: 122 | B124: Sasha Habgood | C124: =IFERROR(VLOOKUP(B124,INDIRECT("'"&$G$1&"'!"&"$C$2:$H$200"),2,FALSE),"") -> MDC | D124: =IFERROR(VLOOKUP(B124,INDIRECT("'"&$G$1&"'!"&"$C$2:$H$200"),3,FALSE),"") -> F | E124: =IFERROR(VLOOKUP(B124,INDIRECT("'"&$G$1&"'!"&"$C$2:$H$200"),4,FALSE),"") -> FO40 | F124: =SUM(LARGE((H124,J124,L124,N124,P124),{1,2,3,4,5})) -> 66.78126343 | G124: 00:20:40 | H124: 66.78126343 | J124: 0 | L124: 0 | N124: 0 | P124: 0 | R124: 1 | S124: 66.78126343
A125: 123 | B125: Nigel Graham | C125: =IFERROR(VLOOKUP(B125,INDIRECT("'"&$K$1&"'!"&"$C$2:$H$200"),2,FALSE),"") -> Unattached | D125: =IFERROR(VLOOKUP(B125,INDIRECT("'"&$K$1&"'!"&"$C$2:$H$200"),3,FALSE),"") -> M | E125: =IFERROR(VLOOKUP(B125,INDIRECT("'"&$K$1&"'!"&"$C$2:$H$200"),4,FALSE),"") -> MO40 | F125: =SUM(LARGE((H125,J125,L125,N125,P125),{1,2,3,4,5})) -> 66.42066421 | H125: 0 | J125: 0 | K125: 2.513888889 | L125: 66.42066421 | N125: 0 | P125: 0 | R125: 1 | S125: 66.42066421
A126: 124 | B126: John Magee | C126: Les Croupiers RC | D126: M | E126: MO40 | F126: =SUM(LARGE((H126,J126,L126,N126,P126),{1,2,3,4,5})) -> 66.19926199 | H126: 0 | J126: 0 | K126: 2.518055556 | L126: 66.19926199 | N126: 0 | P126: 0 | R126: 1 | S126: 66.19926199
A127: 125 | B127: Howard Kent | C127: Les Croupiers RC | D127: M | E127: MO60 | F127: =SUM(LARGE((H127,J127,L127,N127,P127),{1,2,3,4,5})) -> 66.12546125 | H127: 0 | J127: 0 | K127: 2.519444444 | L127: 66.12546125 | N127: 0 | P127: 0 | R127: 1 | S127: 66.12546125
A128: 126 | B128: Paul Thomas | C128: Islwyn RC | D128: M | E128: MO40 | F128: =SUM(LARGE((H128,J128,L128,N128,P128),{1,2,3,4,5})) -> 65.97785978 | H128: 0 | J128: 0 | K128: 2.522222222 | L128: 65.97785978 | N128: 0 | P128: 0 | R128: 1 | S128: 65.97785978
A129: 127 | B129: Alice Bedwell | C129: Mynyddwyr de Cymru | D129: F | E129: FO50 | F129: =SUM(LARGE((H129,J129,L129,N129,P129),{1,2,3,4,5})) -> 65.60885609 | H129: 0 | J129: 0 | K129: 2.529166667 | L129: 65.60885609 | N129: 0 | P129: 0 | R129: 1 | S129: 65.60885609
A130: 128 | B130: Stephen May | C130: Pontypridd Roadents | D130: M | E130: MO40 | F130: =SUM(LARGE((H130,J130,L130,N130,P130),{1,2,3,4,5})) -> 65.42435424 | H130: 0 | J130: 0 | K130: 2.532638889 | L130: 65.42435424 | N130: 0 | P130: 0 | R130: 1 | S130: 65.42435424
A131: =ROW(A129) -> 129 | B131: Kerry Galey | C131: Unattached | D131: M | E131: MO50 | F131: =SUM(LARGE((H131,J131,L131,N131,P131),{1,2,3,4,5})) -> 65.35055351 | G131: =IFERROR(VLOOKUP(B131,INDIRECT("'"&$G$1&"'!"&"$C$2:$H$200"),5,FALSE),"") ->  | H131: =IFERROR(VLOOKUP(B131,INDIRECT("'"&$G$1&"'!"&"$C$2:$H$200"),6,FALSE),0) -> 0 | I131: =IFERROR(VLOOKUP(B131,INDIRECT("'"&$I$1&"'!"&"$C$2:$G$200"),5,FALSE),"") ->  | J131: =IFERROR(VLOOKUP(B131,INDIRECT("'"&$I$1&"'!"&"$C$2:$H$200"),6,FALSE),0) -> 0 | K131: =IFERROR(VLOOKUP(B131,INDIRECT("'"&$K$1&"'!"&"$C$2:$G$400"),5,FALSE),"") -> 2.534027778 | L131: =IFERROR(VLOOKUP(B131,INDIRECT("'"&$K$1&"'!"&"$C$2:$H$400"),6,FALSE),0) -> 65.35055351 | M131: =IFERROR(VLOOKUP(B131,INDIRECT("'"&$M$1&"'!"&"$C$2:$H$200"),5,FALSE),"") ->  | N131: =IFERROR(VLOOKUP(B131,INDIRECT("'"&$M$1&"'!"&"$C$2:$H$200"),6,FALSE),0) -> 0 | O131: =IFERROR(VLOOKUP(B131,INDIRECT("'"&$O$1&"'!"&"$C$2:$G$200"),4,FALSE),"") ->  | P131: =IFERROR(VLOOKUP(B131,INDIRECT("'"&$O$1&"'!"&"$C$2:$G$200"),5,FALSE),0) -> 0 | Q131: =IFERROR(VLOOKUP(B131,INDIRECT("'"&$Q$1&"'!"&"$C$2:$G$200"),4,FALSE),"") ->  | R131: =6-COUNTIF(G131:Q131,"") -> 1 | S131: =F131/IF(R131>4,5,R131) -> 65.35055351
A132: 130 | B132: Stephen Owen | C132: Chepstow Harriers | D132: M | E132: MO60 | F132: =SUM(LARGE((H132,J132,L132,N132,P132),{1,2,3,4,5})) -> 65.16605166 | H132: 0 | J132: 0 | K132: 2.5375 | L132: 65.16605166 | N132: 0 | P132: 0 | R132: 1 | S132: 65.16605166
A133: 131 | B133: Nick Young | C133: Cardiff Tri | D133: M | E133: MU40 | F133: =SUM(LARGE((H133,J133,L133,N133,P133),{1,2,3,4,5})) -> 65.01845018 | H133: 0 | J133: 0 | K133: 2.540277778 | L133: 65.01845018 | N133: 0 | P133: 0 | R133: 1 | S133: 65.01845018
A134: 132 | B134: Hefin Gruffydd | C134: Pontypridd Roadents | D134: M | E134: MO50 | F134: =SUM(LARGE((H134,J134,L134,N134,P134),{1,2,3,4,5})) -> 64.98154982 | H134: 0 | J134: 0 | K134: 2.540972222 | L134: 64.98154982 | N134: 0 | P134: 0 | R134: 1 | S134: 64.98154982
A135: 133 | B135: Richard Howells | C135: Unattached | D135: M | E135: MU40 | F135: =SUM(LARGE((H135,J135,L135,N135,P135),{1,2,3,4,5})) -> 64.98154982 | H135: 0 | J135: 0 | K135: 2.540972222 | L135: 64.98154982 | N135: 0 | P135: 0 | R135: 1 | S135: 64.98154982
A136: 134 | B136: Richard D Jones | C136: Unattached | D136: M | E136: MO40 | F136: =SUM(LARGE((H136,J136,L136,N136,P136),{1,2,3,4,5})) -> 64.94464945 | H136: 0 | J136: 0 | K136: 2.541666667 | L136: 64.94464945 | N136: 0 | P136: 0 | R136: 1 | S136: 64.94464945
A137: 135 | B137: Craig Smith | C137: Pegasus RC | D137: M | E137: MU40 | F137: =SUM(LARGE((H137,J137,L137,N137,P137),{1,2,3,4,5})) -> 64.61254613 | H137: 0 | J137: 0 | K137: 2.547916667 | L137: 64.61254613 | N137: 0 | P137: 0 | R137: 1 | S137: 64.61254613
A138: 136 | B138: Cath Tailby | C138: Penarth & Dinas Runners | D138: F | E138: FO40 | F138: =SUM(LARGE((H138,J138,L138,N138,P138),{1,2,3,4,5})) -> 64.39114391 | H138: 0 | J138: 0 | K138: 2.552083333 | L138: 64.39114391 | N138: 0 | P138: 0 | R138: 1 | S138: 64.39114391
A139: 137 | B139: Peter Llewellyn | C139: Unattached | D139: M | E139: MU40 | F139: =SUM(LARGE((H139,J139,L139,N139,P139),{1,2,3,4,5})) -> 64.20664207 | H139: 0 | J139: 0 | K139: 2.555555556 | L139: 64.20664207 | N139: 0 | P139: 0 | R139: 1 | S139: 64.20664207
A140: 138 | B140: Gareth Jones | C140: Mynyddwyr de Cymru | D140: M | E140: MO60 | F140: =SUM(LARGE((H140,J140,L140,N140,P140),{1,2,3,4,5})) -> 64.05904059 | H140: 0 | J140: 0 | K140: 2.558333333 | L140: 64.05904059 | N140: 0 | P140: 0 | R140: 1 | S140: 64.05904059
A141: 139 | B141: Harry Row | C141: Unattached | D141: M | E141: MU40 | F141: =SUM(LARGE((H141,J141,L141,N141,P141),{1,2,3,4,5})) -> 63.91143911 | H141: 0 | J141: 0 | K141: 2.561111111 | L141: 63.91143911 | N141: 0 | P141: 0 | R141: 1 | S141: 63.91143911
A142: 140 | B142: Rhys Griffiths | C142: Hendre Lake RC | D142: M | E142: MU40 | F142: =SUM(LARGE((H142,J142,L142,N142,P142),{1,2,3,4,5})) -> 63.87453875 | H142: 0 | J142: 0 | K142: 2.561805556 | L142: 63.87453875 | N142: 0 | P142: 0 | R142: 1 | S142: 63.87453875
A143: 141 | B143: Patrick Keating | C143: Unattached | D143: M | E143: MU40 | F143: =SUM(LARGE((H143,J143,L143,N143,P143),{1,2,3,4,5})) -> 63.76383764 | H143: 0 | J143: 0 | K143: 2.563888889 | L143: 63.76383764 | N143: 0 | P143: 0 | R143: 1 | S143: 63.76383764
A144: 142 | B144: Paul Harvey | C144: Pontypool | D144: M | E144: MU40 | F144: =SUM(LARGE((H144,J144,L144,N144,P144),{1,2,3,4,5})) -> 63.72693727 | H144: 0 | J144: 0 | K144: 2.564583333 | L144: 63.72693727 | N144: 0 | P144: 0 | R144: 1 | S144: 63.72693727
A145: 143 | B145: Ian Leaves | C145: Unattached | D145: M | E145: MO40 | F145: =SUM(LARGE((H145,J145,L145,N145,P145),{1,2,3,4,5})) -> 63.61623616 | H145: 0 | J145: 0 | K145: 2.566666667 | L145: 63.61623616 | N145: 0 | P145: 0 | R145: 1 | S145: 63.61623616
A146: 144 | B146: Sally Lock | C146: Unattached | D146: F | E146: FU40 | F146: =SUM(LARGE((H146,J146,L146,N146,P146),{1,2,3,4,5})) -> 63.24723247 | H146: 0 | J146: 0 | K146: 2.573611111 | L146: 63.24723247 | N146: 0 | P146: 0 | R146: 1 | S146: 63.24723247
A147: 145 | B147: Glenn Powell | C147: Penarth & Dinas Runners | D147: M | E147: MU40 | F147: =SUM(LARGE((H147,J147,L147,N147,P147),{1,2,3,4,5})) -> 62.43542435 | H147: 0 | J147: 0 | K147: 2.588888889 | L147: 62.43542435 | N147: 0 | P147: 0 | R147: 1 | S147: 62.43542435
A148: 146 | B148: David Cornish | C148: Port Talbot Harriers | D148: M | E148: MO50 | F148: =SUM(LARGE((H148,J148,L148,N148,P148),{1,2,3,4,5})) -> 61.5498155 | H148: 0 | J148: 0 | K148: 2.605555556 | L148: 61.5498155 | N148: 0 | P148: 0 | R148: 1 | S148: 61.5498155
A149: 147 | B149: Gina Hardman | C149: Bridgend AC | D149: F | E149: FO40 | F149: =SUM(LARGE((H149,J149,L149,N149,P149),{1,2,3,4,5})) -> 61.29151292 | H149: 0 | J149: 0 | K149: 2.610416667 | L149: 61.29151292 | N149: 0 | P149: 0 | R149: 1 | S149: 61.29151292
A150: 148 | B150: Jan Edwards | C150: Pontypridd Roadents | D150: F | E150: FO40 | F150: =SUM(LARGE((H150,J150,L150,N150,P150),{1,2,3,4,5})) -> 61.03321033 | H150: 0 | J150: 0 | K150: 2.615277778 | L150: 61.03321033 | N150: 0 | P150: 0 | R150: 1 | S150: 61.03321033
A151: 149 | B151: Richard Bowie | C151: Fairwater Runners | D151: M | E151: MO50 | F151: =SUM(LARGE((H151,J151,L151,N151,P151),{1,2,3,4,5})) -> 60.73800738 | H151: 0 | J151: 0 | K151: 2.620833333 | L151: 60.73800738 | N151: 0 | P151: 0 | R151: 1 | S151: 60.73800738
A152: 150 | B152: John Kerley | C152: AS Chamonix | D152: M | E152: MO60 | F152: =SUM(LARGE((H152,J152,L152,N152,P152),{1,2,3,4,5})) -> 60.51660517 | H152: 0 | J152: 0 | K152: 2.625 | L152: 60.51660517 | N152: 0 | P152: 0 | R152: 1 | S152: 60.51660517
A153: 151 | B153: Jessica Ellis | C153: Les Croupiers RC | D153: F | E153: FU40 | F153: =SUM(LARGE((H153,J153,L153,N153,P153),{1,2,3,4,5})) -> 60.4797048 | H153: 0 | J153: 0 | K153: 2.625694444 | L153: 60.4797048 | N153: 0 | P153: 0 | R153: 1 | S153: 60.4797048
A154: 152 | B154: Robert Haley | C154: Unattached | D154: M | E154: MU40 | F154: =SUM(LARGE((H154,J154,L154,N154,P154),{1,2,3,4,5})) -> 60.36900369 | H154: 0 | J154: 0 | K154: 2.627777778 | L154: 60.36900369 | N154: 0 | P154: 0 | R154: 1 | S154: 60.36900369
A155: 153 | B155: Pat Westlake | C155: Unattached | D155: M | E155: MO50 | F155: =SUM(LARGE((H155,J155,L155,N155,P155),{1,2,3,4,5})) -> 60.29520295 | H155: 0 | J155: 0 | K155: 2.629166667 | L155: 60.29520295 | N155: 0 | P155: 0 | R155: 1 | S155: 60.29520295
A156: 154 | B156: Jeremy Theobald | C156: Cardiff Tri | D156: M | E156: MU40 | F156: =SUM(LARGE((H156,J156,L156,N156,P156),{1,2,3,4,5})) -> 59.92619926 | H156: 0 | J156: 0 | K156: 2.636111111 | L156: 59.92619926 | N156: 0 | P156: 0 | R156: 1 | S156: 59.92619926
A157: 155 | B157: Anna Lewis | C157: Unattached | D157: F | E157: FU40 | F157: =SUM(LARGE((H157,J157,L157,N157,P157),{1,2,3,4,5})) -> 59.55719557 | H157: 0 | J157: 0 | K157: 2.643055556 | L157: 59.55719557 | N157: 0 | P157: 0 | R157: 1 | S157: 59.55719557
A158: 156 | B158: Ian Bell | C158: San Domenico RC | D158: M | E158: MO50 | F158: =SUM(LARGE((H158,J158,L158,N158,P158),{1,2,3,4,5})) -> 59.04059041 | H158: 0 | J158: 0 | K158: 2.652777778 | L158: 59.04059041 | N158: 0 | P158: 0 | R158: 1 | S158: 59.04059041
A159: 157 | B159: Paul Gilsen | C159: Unattached | D159: M | E159: MU40 | F159: =SUM(LARGE((H159,J159,L159,N159,P159),{1,2,3,4,5})) -> 58.63468635 | H159: 0 | J159: 0 | K159: 2.660416667 | L159: 58.63468635 | N159: 0 | P159: 0 | R159: 1 | S159: 58.63468635
A160: 158 | B160: Jeanette Jenkins | C160: Fairwater Runners | D160: F | E160: FO50 | F160: =SUM(LARGE((H160,J160,L160,N160,P160),{1,2,3,4,5})) -> 58.52398524 | H160: 0 | J160: 0 | K160: 2.6625 | L160: 58.52398524 | N160: 0 | P160: 0 | R160: 1 | S160: 58.52398524
A161: 159 | B161: Roy Silver | C161: Les Croupiers RC | D161: M | E161: MO50 | F161: =SUM(LARGE((H161,J161,L161,N161,P161),{1,2,3,4,5})) -> 58.33948339 | H161: 0 | J161: 0 | K161: 2.665972222 | L161: 58.33948339 | N161: 0 | P161: 0 | R161: 1 | S161: 58.33948339
A162: 160 | B162: Martin Slucutt | C162: Swansea Harriers | D162: M | E162: MU40 | F162: =SUM(LARGE((H162,J162,L162,N162,P162),{1,2,3,4,5})) -> 58.00738007 | H162: 0 | J162: 0 | K162: 2.672222222 | L162: 58.00738007 | N162: 0 | P162: 0 | R162: 1 | S162: 58.00738007
A163: 161 | B163: John Carroll | C163: Roberttown Runners | D163: M | E163: MO50 | F163: =SUM(LARGE((H163,J163,L163,N163,P163),{1,2,3,4,5})) -> 57.9704797 | H163: 0 | J163: 0 | K163: 2.672916667 | L163: 57.9704797 | N163: 0 | P163: 0 | R163: 1 | S163: 57.9704797
A164: 162 | B164: Liz Merrifield | C164: Unattached | D164: F | E164: FU40 | F164: =SUM(LARGE((H164,J164,L164,N164,P164),{1,2,3,4,5})) -> 57.93357934 | H164: 0 | J164: 0 | K164: 2.673611111 | L164: 57.93357934 | N164: 0 | P164: 0 | R164: 1 | S164: 57.93357934
A165: 163 | B165: Judith Oakley | C165: Vegan Runners | D165: F | E165: FO50 | F165: =SUM(LARGE((H165,J165,L165,N165,P165),{1,2,3,4,5})) -> 57.8597786 | H165: 0 | J165: 0 | K165: 2.675 | L165: 57.8597786 | N165: 0 | P165: 0 | R165: 1 | S165: 57.8597786
A166: 164 | B166: Ruth Deards | C166: Les Croupiers RC | D166: F | E166: FO40 | F166: =SUM(LARGE((H166,J166,L166,N166,P166),{1,2,3,4,5})) -> 57.12177122 | H166: 0 | J166: 0 | K166: 2.688888889 | L166: 57.12177122 | N166: 0 | P166: 0 | R166: 1 | S166: 57.12177122
A167: 165 | B167: Martin Gebbett | C167: Horstorth Fellindale | D167: M | E167: MO50 | F167: =SUM(LARGE((H167,J167,L167,N167,P167),{1,2,3,4,5})) -> 56.86346863 | H167: 0 | J167: 0 | K167: 2.69375 | L167: 56.86346863 | N167: 0 | P167: 0 | R167: 1 | S167: 56.86346863
A168: 166 | B168: Jan Richards | C168: =IFERROR(VLOOKUP(B168,INDIRECT("'"&$M$1&"'!"&"$C$2:$H$400"),2,FALSE),"") -> Mynydd Du | D168: =IFERROR(VLOOKUP(B168,INDIRECT("'"&$M$1&"'!"&"$C$2:$H$400"),3,FALSE),"") -> F | E168: =IFERROR(VLOOKUP(B168,INDIRECT("'"&$M$1&"'!"&"$C$2:$H$400"),4,FALSE),"") -> FO50 | F168: =SUM(LARGE((H168,J168,L168,N168,P168),{1,2,3,4,5})) -> 56.68917832 | H168: 0 | J168: 0 | L168: 0 | M168: 0.04126157407 | N168: 56.68917832 | P168: 0 | R168: 1 | S168: 56.68917832
A169: 167 | B169: Linda Woodland | C169: =IFERROR(VLOOKUP(B169,INDIRECT("'"&$K$1&"'!"&"$C$2:$H$200"),2,FALSE),"") -> Port Talbot Harriers | D169: =IFERROR(VLOOKUP(B169,INDIRECT("'"&$K$1&"'!"&"$C$2:$H$200"),3,FALSE),"") -> F | E169: =IFERROR(VLOOKUP(B169,INDIRECT("'"&$K$1&"'!"&"$C$2:$H$200"),4,FALSE),"") -> FO50 | F169: =SUM(LARGE((H169,J169,L169,N169,P169),{1,2,3,4,5})) -> 56.67896679 | H169: 0 | J169: 0 | K169: 2.697222222 | L169: 56.67896679 | N169: 0 | P169: 0 | R169: 1 | S169: 56.67896679
A170: 168 | B170: Glyn Drucker | C170: =IFERROR(VLOOKUP(B170,INDIRECT("'"&$K$1&"'!"&"$C$2:$H$200"),2,FALSE),"") -> Caerphilly Runners | D170: =IFERROR(VLOOKUP(B170,INDIRECT("'"&$K$1&"'!"&"$C$2:$H$200"),3,FALSE),"") -> M | E170: =IFERROR(VLOOKUP(B170,INDIRECT("'"&$K$1&"'!"&"$C$2:$H$200"),4,FALSE),"") -> MO40 | F170: =SUM(LARGE((H170,J170,L170,N170,P170),{1,2,3,4,5})) -> 56.23616236 | H170: 0 | J170: 0 | K170: 2.705555556 | L170: 56.23616236 | N170: 0 | P170: 0 | R170: 1 | S170: 56.23616236
A171: 169 | B171: Dewi Gwynedd | C171: =IFERROR(VLOOKUP(B171,INDIRECT("'"&$K$1&"'!"&"$C$2:$H$200"),2,FALSE),"") -> Unattached | D171: =IFERROR(VLOOKUP(B171,INDIRECT("'"&$K$1&"'!"&"$C$2:$H$200"),3,FALSE),"") -> M | E171: =IFERROR(VLOOKUP(B171,INDIRECT("'"&$K$1&"'!"&"$C$2:$H$200"),4,FALSE),"") -> MO40 | F171: =SUM(LARGE((H171,J171,L171,N171,P171),{1,2,3,4,5})) -> 56.16236162 | H171: 0 | J171: 0 | K171: 2.706944444 | L171: 56.16236162 | N171: 0 | P171: 0 | R171: 1 | S171: 56.16236162
A172: 170 | B172: Kat Hunter | C172: =IFERROR(VLOOKUP(B172,INDIRECT("'"&$K$1&"'!"&"$C$2:$H$200"),2,FALSE),"") -> Unattached | D172: =IFERROR(VLOOKUP(B172,INDIRECT("'"&$K$1&"'!"&"$C$2:$H$200"),3,FALSE),"") -> F | E172: =IFERROR(VLOOKUP(B172,INDIRECT("'"&$K$1&"'!"&"$C$2:$H$200"),4,FALSE),"") -> FU40 | F172: =SUM(LARGE((H172,J172,L172,N172,P172),{1,2,3,4,5})) -> 55.79335793 | H172: 0 | J172: 0 | K172: 2.713888889 | L172: 55.79335793 | N172: 0 | P172: 0 | R172: 1 | S172: 55.79335793
A173: 171 | B173: Dave Mathews | C173: =IFERROR(VLOOKUP(B173,INDIRECT("'"&$K$1&"'!"&"$C$2:$H$200"),2,FALSE),"") -> Penarth & Dinas Runners | D173: =IFERROR(VLOOKUP(B173,INDIRECT("'"&$K$1&"'!"&"$C$2:$H$200"),3,FALSE),"") -> M | E173: =IFERROR(VLOOKUP(B173,INDIRECT("'"&$K$1&"'!"&"$C$2:$H$200"),4,FALSE),"") -> MU40 | F173: =SUM(LARGE((H173,J173,L173,N173,P173),{1,2,3,4,5})) -> 55.46125461 | H173: 0 | J173: 0 | K173: 2.720138889 | L173: 55.46125461 | N173: 0 | P173: 0 | R173: 1 | S173: 55.46125461
A174: 172 | B174: Gemma O'Brien | C174: =IFERROR(VLOOKUP(B174,INDIRECT("'"&$M$1&"'!"&"$C$2:$H$400"),2,FALSE),"") -> U/A | D174: =IFERROR(VLOOKUP(B174,INDIRECT("'"&$M$1&"'!"&"$C$2:$H$400"),3,FALSE),"") -> F | E174: =IFERROR(VLOOKUP(B174,INDIRECT("'"&$M$1&"'!"&"$C$2:$H$400"),4,FALSE),"") -> FU40 | F174: =SUM(LARGE((H174,J174,L174,N174,P174),{1,2,3,4,5})) -> 55.36259849 | H174: 0 | J174: 0 | L174: 0 | M174: 0.04164351852 | N174: 55.36259849 | P174: 0 | R174: 1 | S174: 55.36259849
A175: 173 | B175: Kevin Hale | C175: =IFERROR(VLOOKUP(B175,INDIRECT("'"&$M$1&"'!"&"$C$2:$H$400"),2,FALSE),"") -> Bridgend AC | D175: =IFERROR(VLOOKUP(B175,INDIRECT("'"&$M$1&"'!"&"$C$2:$H$400"),3,FALSE),"") -> M | E175: =IFERROR(VLOOKUP(B175,INDIRECT("'"&$M$1&"'!"&"$C$2:$H$400"),4,FALSE),"") -> MO50 | F175: =SUM(LARGE((H175,J175,L175,N175,P175),{1,2,3,4,5})) -> 55.36259849 | H175: 0 | J175: 0 | L175: 0 | M175: 0.04164351852 | N175: 55.36259849 | P175: 0 | R175: 1 | S175: 55.36259849
A176: 174 | B176: Bob Ford | C176: =IFERROR(VLOOKUP(B176,INDIRECT("'"&$K$1&"'!"&"$C$2:$H$200"),2,FALSE),"") -> Pontypridd Roadents | D176: =IFERROR(VLOOKUP(B176,INDIRECT("'"&$K$1&"'!"&"$C$2:$H$200"),3,FALSE),"") -> M | E176: =IFERROR(VLOOKUP(B176,INDIRECT("'"&$K$1&"'!"&"$C$2:$H$200"),4,FALSE),"") -> MO60 | F176: =SUM(LARGE((H176,J176,L176,N176,P176),{1,2,3,4,5})) -> 55.31365314 | H176: 0 | J176: 0 | K176: 2.722916667 | L176: 55.31365314 | N176: 0 | P176: 0 | R176: 1 | S176: 55.31365314
A177: 175 | B177: Jonathan Morris | C177: Unattached | D177: M | E177: MU40 | F177: =SUM(LARGE((H177,J177,L177,N177,P177),{1,2,3,4,5})) -> 55.09225092 | H177: 0 | J177: 0 | K177: 2.727083333 | L177: 55.09225092 | N177: 0 | P177: 0 | R177: 1 | S177: 55.09225092
A178: 176 | B178: Kris Powell | C178: Unattached | D178: F | E178: FU40 | F178: =SUM(LARGE((H178,J178,L178,N178,P178),{1,2,3,4,5})) -> 54.87084871 | H178: 0 | J178: 0 | K178: 2.73125 | L178: 54.87084871 | N178: 0 | P178: 0 | R178: 1 | S178: 54.87084871
A179: 177 | B179: Nicholas Pounder | C179: Pontypridd Roadents | D179: M | E179: MO40 | F179: =SUM(LARGE((H179,J179,L179,N179,P179),{1,2,3,4,5})) -> 54.53874539 | H179: 0 | J179: 0 | K179: 2.7375 | L179: 54.53874539 | N179: 0 | P179: 0 | R179: 1 | S179: 54.53874539
A180: 178 | B180: Aisling Pigott | C180: Outdoor Fitness | D180: F | E180: FU40 | F180: =SUM(LARGE((H180,J180,L180,N180,P180),{1,2,3,4,5})) -> 54.39114391 | H180: 0 | J180: 0 | K180: 2.740277778 | L180: 54.39114391 | N180: 0 | P180: 0 | R180: 1 | S180: 54.39114391
A181: 179 | B181: Neill Parker | C181: Islwyn RC | D181: M | E181: MO40 | F181: =SUM(LARGE((H181,J181,L181,N181,P181),{1,2,3,4,5})) -> 54.31734317 | H181: 0 | J181: 0 | K181: 2.741666667 | L181: 54.31734317 | N181: 0 | P181: 0 | R181: 1 | S181: 54.31734317
A182: 180 | B182: Martyn Jenkins | C182: Fairwater Runners | D182: M | E182: MO50 | F182: =SUM(LARGE((H182,J182,L182,N182,P182),{1,2,3,4,5})) -> 53.94833948 | H182: 0 | J182: 0 | K182: 2.748611111 | L182: 53.94833948 | N182: 0 | P182: 0 | R182: 1 | S182: 53.94833948
A183: 181 | B183: Adrian Gwilliam | C183: Fairwater Runners | D183: M | E183: MO50 | F183: =SUM(LARGE((H183,J183,L183,N183,P183),{1,2,3,4,5})) -> 53.72693727 | H183: 0 | J183: 0 | K183: 2.752777778 | L183: 53.72693727 | N183: 0 | P183: 0 | R183: 1 | S183: 53.72693727
A184: 182 | B184: Neil Coleman | C184: Unattached | D184: M | E184: MO50 | F184: =SUM(LARGE((H184,J184,L184,N184,P184),{1,2,3,4,5})) -> 52.98892989 | H184: 0 | J184: 0 | K184: 2.766666667 | L184: 52.98892989 | N184: 0 | P184: 0 | R184: 1 | S184: 52.98892989
A185: 183 | B185: Dean McNeil-Jones | C185: Unattached | D185: M | E185: MO40 | F185: =SUM(LARGE((H185,J185,L185,N185,P185),{1,2,3,4,5})) -> 52.50922509 | H185: 0 | J185: 0 | K185: 2.775694444 | L185: 52.50922509 | N185: 0 | P185: 0 | R185: 1 | S185: 52.50922509
A186: 184 | B186: Andrew Ramsey | C186: Caerphilly Runners | D186: M | E186: MU40 | F186: =SUM(LARGE((H186,J186,L186,N186,P186),{1,2,3,4,5})) -> 52.32472325 | H186: 0 | J186: 0 | K186: 2.779166667 | L186: 52.32472325 | N186: 0 | P186: 0 | R186: 1 | S186: 52.32472325
A187: 185 | B187: Karen Hackwell | C187: Unattached | D187: F | E187: FO40 | F187: =SUM(LARGE((H187,J187,L187,N187,P187),{1,2,3,4,5})) -> 51.88191882 | H187: 0 | J187: 0 | K187: 2.7875 | L187: 51.88191882 | N187: 0 | P187: 0 | R187: 1 | S187: 51.88191882
A188: 186 | B188: Lisa Cleary | C188: Penarth & Dinas Runners | D188: F | E188: FO50 | F188: =SUM(LARGE((H188,J188,L188,N188,P188),{1,2,3,4,5})) -> 50.95940959 | H188: 0 | J188: 0 | K188: 2.804861111 | L188: 50.95940959 | N188: 0 | P188: 0 | R188: 1 | S188: 50.95940959
A189: 187 | B189: Rachel Garside | C189: Unattached | D189: F | E189: FO40 | F189: =SUM(LARGE((H189,J189,L189,N189,P189),{1,2,3,4,5})) -> 50.88560886 | H189: 0 | J189: 0 | K189: 2.80625 | L189: 50.88560886 | N189: 0 | P189: 0 | R189: 1 | S189: 50.88560886
A190: 188 | B190: Peter Dorrington | C190: Unattached | D190: M | E190: MU40 | F190: =SUM(LARGE((H190,J190,L190,N190,P190),{1,2,3,4,5})) -> 50.25830258 | H190: 0 | J190: 0 | K190: 2.818055556 | L190: 50.25830258 | N190: 0 | P190: 0 | R190: 1 | S190: 50.25830258
A191: 189 | B191: Gwyn Jones | C191: Les Croupiers RC | D191: M | E191: MO50 | F191: =SUM(LARGE((H191,J191,L191,N191,P191),{1,2,3,4,5})) -> 50.22140221 | H191: 0 | J191: 0 | K191: 2.81875 | L191: 50.22140221 | N191: 0 | P191: 0 | R191: 1 | S191: 50.22140221
A192: 190 | B192: Stephen Paskell | C192: Pontyclun Road Runners | D192: M | E192: MO40 | F192: =SUM(LARGE((H192,J192,L192,N192,P192),{1,2,3,4,5})) -> 50.22140221 | H192: 0 | J192: 0 | K192: 2.81875 | L192: 50.22140221 | N192: 0 | P192: 0 | R192: 1 | S192: 50.22140221
A193: 191 | B193: Neil Cook | C193: Unattached | D193: M | E193: MO40 | F193: =SUM(LARGE((H193,J193,L193,N193,P193),{1,2,3,4,5})) -> 50.03690037 | H193: 0 | J193: 0 | K193: 2.822222222 | L193: 50.03690037 | N193: 0 | P193: 0 | R193: 1 | S193: 50.03690037
A194: 192 | B194: Andrew Palmer | C194: Penarth & Dinas Runners | D194: M | E194: MO40 | F194: =SUM(LARGE((H194,J194,L194,N194,P194),{1,2,3,4,5})) -> 50 | H194: 0 | J194: 0 | K194: 2.822916667 | L194: 50 | N194: 0 | P194: 0 | R194: 1 | S194: 50
A195: =ROW(A193) -> 193 | B195: Jon Griffiths | C195: Village Vipers | D195: M | E195: MO40 | F195: =SUM(LARGE((H195,J195,L195,N195,P195),{1,2,3,4,5})) -> 49.74169742 | G195: =IFERROR(VLOOKUP(B195,INDIRECT("'"&$G$1&"'!"&"$C$2:$H$200"),5,FALSE),"") ->  | H195: =IFERROR(VLOOKUP(B195,INDIRECT("'"&$G$1&"'!"&"$C$2:$H$200"),6,FALSE),0) -> 0 | I195: =IFERROR(VLOOKUP(B195,INDIRECT("'"&$I$1&"'!"&"$C$2:$G$200"),5,FALSE),"") ->  | J195: =IFERROR(VLOOKUP(B195,INDIRECT("'"&$I$1&"'!"&"$C$2:$H$200"),6,FALSE),0) -> 0 | K195: =IFERROR(VLOOKUP(B195,INDIRECT("'"&$K$1&"'!"&"$C$2:$G$400"),5,FALSE),"") -> 2.827777778 | L195: =IFERROR(VLOOKUP(B195,INDIRECT("'"&$K$1&"'!"&"$C$2:$H$400"),6,FALSE),0) -> 49.74169742 | M195: =IFERROR(VLOOKUP(B195,INDIRECT("'"&$M$1&"'!"&"$C$2:$H$200"),5,FALSE),"") ->  | N195: =IFERROR(VLOOKUP(B195,INDIRECT("'"&$M$1&"'!"&"$C$2:$H$200"),6,FALSE),0) -> 0 | O195: =IFERROR(VLOOKUP(B195,INDIRECT("'"&$O$1&"'!"&"$C$2:$G$200"),4,FALSE),"") ->  | P195: =IFERROR(VLOOKUP(B195,INDIRECT("'"&$O$1&"'!"&"$C$2:$G$200"),5,FALSE),0) -> 0 | Q195: =IFERROR(VLOOKUP(B195,INDIRECT("'"&$Q$1&"'!"&"$C$2:$G$200"),4,FALSE),"") ->  | R195: =6-COUNTIF(G195:Q195,"") -> 1 | S195: =F195/IF(R195>4,5,R195) -> 49.74169742
A196: 194 | B196: Haydn Griffiths | C196: Mynyddwyr de Cymru | D196: M | E196: MO50 | F196: =SUM(LARGE((H196,J196,L196,N196,P196),{1,2,3,4,5})) -> 49.5202952 | H196: 0 | J196: 0 | K196: 2.831944444 | L196: 49.5202952 | N196: 0 | P196: 0 | R196: 1 | S196: 49.5202952
A197: 195 | B197: Emma Battensby | C197: Unattached | D197: F | E197: FU40 | F197: =SUM(LARGE((H197,J197,L197,N197,P197),{1,2,3,4,5})) -> 49.4095941 | H197: 0 | J197: 0 | K197: 2.834027778 | L197: 49.4095941 | N197: 0 | P197: 0 | R197: 1 | S197: 49.4095941
A198: 196 | B198: Elaine Wharmby | C198: Pegasus RC | D198: F | E198: FO50 | F198: =SUM(LARGE((H198,J198,L198,N198,P198),{1,2,3,4,5})) -> 49.22509225 | H198: 0 | J198: 0 | K198: 2.8375 | L198: 49.22509225 | N198: 0 | P198: 0 | R198: 1 | S198: 49.22509225
A199: 197 | B199: Adrian Eggleton | C199: Unattached | D199: M | E199: MO40 | F199: =SUM(LARGE((H199,J199,L199,N199,P199),{1,2,3,4,5})) -> 48.52398524 | H199: 0 | J199: 0 | K199: 2.850694444 | L199: 48.52398524 | N199: 0 | P199: 0 | R199: 1 | S199: 48.52398524
A200: 198 | B200: Julie Scholey | C200: Les Croupiers RC | D200: F | E200: FO50 | F200: =SUM(LARGE((H200,J200,L200,N200,P200),{1,2,3,4,5})) -> 48.15498155 | H200: 0 | J200: 0 | K200: 2.857638889 | L200: 48.15498155 | N200: 0 | P200: 0 | R200: 1 | S200: 48.15498155
... 124 more rows

Sheet Blorenge Downhill
A1: Position | B1: Number | C1: Name | D1: Club | E1: Gender | F1: Category | G1: Time | H1: Points | I1: =AVERAGE(G2:G6) -> 00:15:30.800
A2: 1 | B2: 223 | C2: Matt Stott | D2: MDC | E2: M | F2: MU40 | G2: 00:14:16 | H2: =(2-(G2/LLYNYFANTOP5))*100 -> 108.036098
A3: =A2+1 -> 2 | B3: 221 | C3: Chris Jones | D3: MDC | E3: M | F3: MU40 | G3: 00:14:17 | H3: 107.9286635
A4: 3 | B4: 220 | C4: Paul Murrin | D4: Chepstow Harriers | E4: M | F4: MO40 | G4: 00:15:37 | H4: 99.33390632
A5: 4 | B5: 217 | C5: Ed Dickson | D5: MDC | E5: M | F5: MU40 | G5: 00:16:38 | H5: 92.78040395
A6: 5 | B6: 225 | C6: Martin Driscoll | D6: MDC | E6: M | F6: MU40 | G6: 00:16:46 | H6: 91.92092823
A7: 6 | B7: 216 | C7: Helen Brown | D7: Mynydd Du | E7: F | F7: FO40 | G7: 00:17:00 | H7: 90.41684572
A8: 7 | B8: 214 | C8: Paul Tucker | D8: U/A | E8: M | F8: MO50 | G8: 00:17:19 | H8: 88.37559089
A9: 8 | B9: 218 | C9: Mark Burley | D9: Bristol and West Athletics Club | E9: M | F9: MU40 | G9: 00:17:43 | H9: 85.79716373
A10: 9 | B10: 233 | C10: Steve Harrhy | D10: Pontypool | E10: M | F10: MO50 | G10: 00:18:09 | H10: 83.00386764
A11: 10 | B11: 227 | C11: Jonathon Like | D11: U/A | E11: M | F11: MU40 | G11: 00:18:34 | H11: 80.31800602
A12: 11 | B12: 226 | C12: Mark Buxton | D12: MDC | E12: M | F12: MU40 | G12: 00:19:22 | H12: 75.1611517
A13: 12 | B13: 229 | C13: Andy Stott | D13: MDC | E13: M | F13: M050 | G13: 00:19:36 | H13: 73.65706919
A14: 13 | B14: 213 | C14: Gary Gunner | D14: Croft Ambrey | E14: M | F14: M070 | G14: 00:19:50 | H14: 72.15298668
A15: 14 | B15: 231 | C15: Sasha Habgood | D15: MDC | E15: F | F15: FO40 | G15: 00:20:40 | H15: 66.78126343
A16: 15 | B16: 222 | C16: Meshari Alsaeed | D16: MDC | E16: M | F16: MU23 | G16: 00:21:36 | H16: 60.76493339
A17: 16 | B17: 215 | C17: Rona Davies | D17: Mynydd Du | E17: F | F17: FU40 | G17: 00:21:42 | H17: 60.1203266
A18: 17 | B18: 224 | C18: Katy Benson | D18: MDC | E18: F | F18: FU40 | G18: 00:22:01 | H18: 58.07907177
A19: 18 | B19: 230 | C19: David Jenkins | D19: Forest of Dean Athletics Club | E19: M | F19: MU40 | G19: 00:22:16 | H19: 56.46755479
A20: 19 | B20: 232 | C20: John Price | D20: Hay Hotfooters | E20: M | F20: MO50 | G20: 00:23:35 | H20: 47.98023206
A21: 20 | B21: 228 | C21: Harriet Like | D21: U/A | E21: F | F21: FO40 | G21: 00:28:59 | H21: 13.17146541

Sheet Blorenge Uphill
B1: Number | C1: Name | D1: Club | E1: Gender | F1: Category | G1: Time | H1: Points | I1: =AVERAGE(G2:G6) -> 00:29:49.800
A2: 1 | B2: 223 | C2: Matt Stott | D2: MDC | E2: M | F2: MU40 | G2: 00:28:13 | H2: =(2-(G2/I$1))*100 -> 105.4084255
A3: 2 | B3: 221 | C3: Chris Jones | D3: MDC | E3: M | F3: MU40 | G3: 00:29:01 | H3: 102.7265616
A4: 3 | B4: 220 | C4: Paul Murrin | D4: Chepstow Harriers | E4: M | F4: MO40 | G4: 00:28:23 | H4: 104.8497039
A5: 4 | B5: 219 | C5: Tim Hindle | D5: Brecon | E5: M | F5: MO40 | G5: 00:31:00 | H5: 96.07777405
A6: 5 | B6: 218 | C6: Mark Burley | D6: Bristol and West Athletics Club | E6: M | F6: MU40 | G6: 00:32:32 | H6: 90.93753492
A7: 6 | B7: 217 | C7: Ed Dickson | D7: MDC | E7: M | F7: MU40 | G7: 00:32:59 | H7: 89.42898648
A8: 7 | B8: 225 | C8: Martin Driscoll | D8: MDC | E8: M | F8: MU40 | G8: 00:33:30 | H8: =(2-(G8/I$1))*100 -> 87.69694938
A9: 8 | B9: 216 | C9: Helen Brown | D9: Mynydd Du | E9: F | F9: FO40 | G9: 00:33:40 | H9: 87.13822773
A10: 9 | B10: 226 | C10: Mark Buxton | D10: MDC | E10: M | F10: MU40 | G10: 00:35:41 | H10: 80.37769583
A11: 10 | B11: 214 | C11: Paul Tucker | D11: U/A | E11: M | F11: MO50 | G11: 00:36:36 | H11: 77.30472679
A12: 11 | B12: 233 | C12: Steve Harrhy | D12: Pontypool | E12: M | F12: MO50 | G12: 00:37:43 | H12: 73.56129176
A13: 12 | B13: 230 | C13: David Jenkins | D13: Forest of Dean Athletics Club | E13: M | F13: MU40 | G13: 00:41:04 | H13: 62.3309867
A14: 13 | B14: 229 | C14: Andy Stott | D14: MDC | E14: M | F14: M050 | G14: 00:43:17 | H14: 54.89998883
A15: 14 | B15: 224 | C15: Katy Benson | D15: MDC | E15: F | F15: FU40 | G15: 00:45:37 | H15: 47.0778858
A16: 15 | B16: 222 | C16: Meshari Alsaeed | D16: MDC | E16: M | F16: MU23 | G16: 00:46:23 | H16: 44.50776623
O64: =IF(#REF!="F",D15," ") -> 
O65: Sarah Tagg
O66: Rebecca Darby
O67: Kate Lock
O68: Sarah Francis
O69: Marcelle Mackay
O70: Carolien Smit
O71: Nicola Sinclair
O72: Dawn Davis
O73: Rowenna Harwar

Sheet Pentyrch Hill Race
A1: Position | B1: Number | C1: Name | D1: Club | E1: Gender | F1: Cat | G1: Time | H1: Points | I1: =AVERAGE(G2:G5) -> 1.881944444
A2: 1 | B2: 10 | C2: Daniel Bodman | D2: Aberdare VAAC | E2: M | F2: MU40 | G2: 1.846527778 | H2: =(2-(G2/I$1))*100 -> 101.8819188
A3: 2 | B3: 86 | C3: Peter Ryder | D3: Cardiff AAC | E3: M | F3: MU40 | G3: 1.857638889 | H3: =(2-(G3/I$1))*100 -> 101.2915129
A4: 3 | B4: 4 | C4: Iwan Morton | D4: MMRT | E4: M | F4: MU40 | G4: 1.885416667 | H4: 99.81549815
A5: 4 | B5: 310 | C5: Oscar Partridge | D5: Mynydd Du | E5: M | F5: MU40 | G5: 1.938194444 | H5: 97.01107011
A6: 5 | B6: 101 | C6: Thomas Burden | D6: Unattached | E6: M | F6: MU40 | G6: 1.95 | H6: 96.38376384
A7: 6 | B7: 96 | C7: Jack Brown | D7: Unattached | E7: M | F7: MU40 | G7: 1.99375 | H7: 94.05904059
A8: 7 | B8: 78 | C8: Darren Bishop | D8: Pontypridd Roadents | E8: M | F8: MU40 | G8: 2.000694444 | H8: 93.6900369
A9: 8 | B9: 57 | C9: Paul Graham | D9: Pontypridd Roadents | E9: M | F9: MU40 | G9: 2.036805556 | H9: 91.77121771
A10: 9 | B10: 45 | C10: Alun Wood | D10: Mynydd Du | E10: M | F10: MU40 | G10: 2.079166667 | H10: 89.5202952
A11: 10 | B11: 140 | C11: Gareth Crossway | D11: Unattached | E11: M | F11: MU40 | G11: 2.082638889 | H11: 89.33579336
A12: 11 | B12: 182 | C12: Lee Mills | D12: Islwyn RC | E12: M | F12: MU40 | G12: 2.088888889 | H12: 89.00369004
A13: 12 | B13: 181 | C13: Dafydd Lambeth | D13: Islwyn RC | E13: M | F13: MO40 | G13: 2.106944444 | H13: 88.04428044
A14: 13 | B14: 154 | C14: Peter Coles | D14: Pontypridd Roadents | E14: M | F14: MO50 | G14: 2.125 | H14: 87.08487085
A15: 14 | B15: 58 | C15: Clara Evans | D15: Pontypridd Roadents | E15: F | F15: FU40 | G15: 2.130555556 | H15: 86.7896679
A16: 15 | B16: 7 | C16: Owen Morris | D16: Unattached | E16: M | F16: MU40 | G16: 2.138194444 | H16: 86.38376384
A17: 16 | B17: 275 | C17: Philip Williams | D17: Pontypridd Roadents | E17: M | F17: MU40 | G17: 2.15 | H17: 85.75645756
A18: 17 | B18: 28 | C18: Rob Sage | D18: Les Croupiers RC | E18: M | F18: MU40 | G18: 2.154166667 | H18: 85.53505535
A19: 18 | B19: 188 | C19: Andrew Jones | D19: Unattached | E19: M | F19: MO40 | G19: 2.172916667 | H19: 84.53874539
A20: 19 | B20: 136 | C20: Tim Hindle | D20: Brecon | E20: M | F20: MO40 | G20: 2.175 | H20: 84.42804428
A21: 20 | B21: 79 | C21: Neil Jones | D21: Pontyclun Road Runners | E21: M | F21: MU40 | G21: 2.184027778 | H21: 83.94833948
A22: 21 | B22: 148 | C22: Oliver Burrows | D22: Unattached | E22: M | F22: MU40 | G22: 2.195833333 | H22: 83.32103321
A23: 22 | B23: 143 | C23: Richard Jackson-Hookins | D23: Penarth & Dinas Runners | E23: M | F23: MU40 | G23: 2.197916667 | H23: 83.2103321
A24: 23 | B24: 137 | C24: Gethin Powell | D24: White Rock Runners | E24: M | F24: MU40 | G24: 2.198611111 | H24: 83.17343173
A25: 24 | B25: 130 | C25: Anthony Bannon | D25: San Domenico RC | E25: M | F25: MU40 | G25: 2.200694444 | H25: 83.06273063
A26: 25 | B26: 274 | C26: Karl James | D26: Neath Harriers | E26: M | F26: MO50 | G26: 2.206944444 | H26: 82.73062731
A27: 26 | B27: 297 | C27: Dave Buchanan | D27: San Domenico RC | E27: M | F27: MU40 | G27: 2.213194444 | H27: 82.39852399
A28: 27 | B28: 157 | C28: Malcom O'Brien | D28: Unattached | E28: M | F28: MU40 | G28: 2.214583333 | H28: 82.32472325
A29: 28 | B29: 296 | C29: Wayne Beynon | D29: Unattached | E29: M | F29: MU40 | G29: 2.228472222 | H29: 81.58671587
A30: 29 | B30: 18 | C30: John Aggleton | D30: Mynyddwyr de Cymru | E30: M | F30: MO60 | G30: 2.238888889 | H30: 81.03321033
A31: 30 | B31: 266 | C31: Simon Thomas | D31: San Domenico RC | E31: M | F31: MO40 | G31: 2.249305556 | H31: 80.4797048
A32: 31 | B32: 34 | C32: Ian Macklin | D32: Mynyddwyr de Cymru | E32: M | F32: MO40 | G32: 2.25625 | H32: 80.11070111
A33: 32 | B33: 196 | C33: Rhodri Evans | D33: Pontypridd Roadents | E33: M | F33: MO40 | G33: 2.259027778 | H33: 79.96309963
A34: 33 | B34: 139 | C34: Matthew Forde | D34: Unattached | E34: M | F34: MU40 | G34: 2.261111111 | H34: 79.85239852
A35: 34 | B35: 38 | C35: Mark Buxton | D35: Mynyddwyr de Cymru | E35: M | F35: MU40 | G35: 2.2625 | H35: 79.77859779
A36: 35 | B36: 100 | C36: Jamie Clode | D36: Bridgend AC | E36: M | F36: MU40 | G36: 2.264583333 | H36: 79.66789668
A37: 36 | B37: 52 | C37: Peter Turnbull | D37: Les Croupiers RC | E37: M | F37: MO50 | G37: 2.267361111 | H37: 79.5202952
A38: 37 | B38: 175 | C38: Patrick Lees | D38: Cardiff Triathletes | E38: M | F38: MU40 | G38: 2.270833333 | H38: 79.33579336
A39: 38 | B39: 189 | C39: Richard Self | D39: Les Croupiers RC | E39: M | F39: MO50 | G39: 2.279861111 | H39: 78.85608856
A40: 39 | B40: 127 | C40: Daniel Thrift | D40: Unattached | E40: M | F40: MU40 | G40: 2.280555556 | H40: 78.81918819
A41: 40 | B41: 107 | C41: Andy Jones | D41: Penarth & Dinas Runners | E41: M | F41: MU40 | G41: 2.28125 | H41: 78.78228782
A42: 41 | B42: 35 | C42: Richard Cronin | D42: Mynyddwyr de Cymru | E42: M | F42: MU40 | G42: 2.286805556 | H42: 78.48708487
A43: 42 | B43: 49 | C43: Katie Roby | D43: Mynyddwyr de Cymru | E43: F | F43: FU40 | G43: 2.296527778 | H43: 77.9704797
A44: 43 | B44: 183 | C44: Paul Hayward | D44: Islwyn RC | E44: M | F44: MU40 | G44: 2.299305556 | H44: 77.82287823
A45: 44 | B45: 144 | C45: Gareth Huw Griffiths | D45: Unattached | E45: M | F45: MO40 | G45: 2.302083333 | H45: 77.67527675
A46: 45 | B46: 249 | C46: Mark Saunders | D46: Mynyddwyr de Cymru | E46: M | F46: MO50 | G46: 2.307638889 | H46: 77.3800738
A47: 46 | B47: 298 | C47: Ceri Davies | D47: San Domenico RC | E47: M | F47: MO40 | G47: 2.315972222 | H47: 76.93726937
A48: 47 | B48: 27 | C48: Elio Lepore | D48: Les Croupiers RC | E48: M | F48: MO60 | G48: 2.333333333 | H48: 76.01476015
A49: 48 | B49: 323 | C49: Paul Chester | D49: WFRA | E49: M | F49: MO40 | G49: 2.339583333 | H49: 75.68265683
A50: 49 | B50: 3 | C50: Darren Jones | D50: Cardiff Harlequins | E50: M | F50: MU40 | G50: 2.35 | H50: 75.12915129
A51: 50 | B51: 129 | C51: Liam Osborne | D51: Pontypridd Roadents | E51: M | F51: MU40 | G51: 2.367361111 | H51: 74.20664207
A52: 51 | B52: 60 | C52: Niki Morgan | D52: Chepstow Harriers | E52: F | F52: FO40 | G52: 2.372916667 | H52: 73.91143911
A53: 52 | B53: 106 | C53: Mark Durkin | D53: Penarth & Dinas Runners | E53: M | F53: MU40 | G53: 2.374305556 | H53: 73.83763838
A54: 53 | B54: 290 | C54: Andrew Evans | D54: Unattached | E54: M | F54: MO40 | G54: 2.375694444 | H54: 73.76383764
A55: 54 | B55: 269 | C55: Andrew Dickens | D55: Mynydd Du | E55: M | F55: MO40 | G55: 2.378472222 | H55: 73.61623616
A56: 55 | B56: 198 | C56: Lee McMeeking | D56: Unattached | E56: M | F56: MO40 | G56: 2.386111111 | H56: 73.2103321
A57: 56 | B57: 89 | C57: Ian Ogilvie | D57: Brackla Harriers | E57: M | F57: MO40 | G57: 2.395833333 | H57: 72.69372694
A58: 57 | B58: 190 | C58: Richard Jones | D58: Unattached | E58: M | F58: MU40 | G58: 2.398611111 | H58: 72.54612546
A59: 58 | B59: 267 | C59: David Morris | D59: Unattached | E59: M | F59: MU40 | G59: 2.402777778 | H59: 72.32472325
A60: 59 | B60: 259 | C60: Laura Tinwell | D60: Pontypridd Roadents | E60: F | F60: FU40 | G60: 2.405555556 | H60: 72.17712177
A61: 60 | B61: 262 | C61: Gary Davies | D61: Mynyddwyr de Cymru | E61: M | F61: MU40 | G61: 2.407638889 | H61: 72.06642066
A62: 61 | B62: 248 | C62: Oliver Lamford | D62: Mynyddwyr de Cymru | E62: M | F62: MU40 | G62: 2.410416667 | H62: 71.91881919
A63: 62 | B63: 281 | C63: Glyn Sansom | D63: San Domenico RC | E63: M | F63: MO50 | G63: 2.4125 | H63: 71.80811808
A64: 63 | B64: 161 | C64: Geraint Jenkins | D64: Port Talbot Harriers | E64: M | F64: MO40 | G64: 2.416666667 | H64: 71.58671587
A65: 64 | B65: 176 | C65: Nick Denny | D65: Pontypridd Roadents | E65: M | F65: MU40 | G65: 2.419444444 | H65: 71.43911439
A66: 65 | B66: 270 | C66: Lou Summers | D66: Mynydd Du | E66: F | F66: FO40 | G66: 2.424305556 | H66: =(2-(G66/I$1))*100 -> 71.18081181
A67: 66 | B67: 170 | C67: Alec Care | D67: San Domenico RC | E67: M | F67: MU40 | G67: 2.436111111 | H67: 70.55350554
A68: 67 | B68: 87 | C68: Huw Pullen | D68: Unattached | E68: M | F68: MU40 | G68: 2.4375 | H68: 70.4797048
A69: 68 | B69: 97 | C69: David Beard | D69: Unattached | E69: M | F69: MU40 | G69: 2.441666667 | H69: 70.25830258
A70: 69 | B70: 66 | C70: Neil Grant | D70: Chepstow Harriers | E70: M | F70: MO60 | G70: 2.444444444 | H70: 70.11070111
A71: 70 | B71: 122 | C71: Carl Edwards | D71: Pontypridd Roadents | E71: M | F71: MO40 | G71: 2.45 | H71: 69.81549815
A72: 71 | B72: 171 | C72: Matthew Hooper | D72: Les Croupiers RC | E72: M | F72: MU40 | G72: 2.451388889 | H72: 69.74169742
A73: 72 | B73: 99 | C73: Natalie Taylor | D73: Mynydd Du | E73: F | F73: FU40 | G73: 2.452777778 | H73: 69.66789668
A74: 73 | B74: 158 | C74: Sean McNally | D74: Unattached | E74: M | F74: MU40 | G74: 2.454861111 | H74: 69.55719557
A75: 74 | B75: 30 | C75: Elaine Ferguson | D75: Pontypridd Roadents | E75: F | F75: FU40 | G75: 2.456944444 | H75: 69.44649446
A76: 75 | B76: 77 | C76: Jamie Bishop | D76: Pontypridd Roadents | E76: M | F76: MU40 | G76: 2.4625 | H76: 69.15129151
A77: 76 | B77: 309 | C77: Simon Slinn | D77: Unattached | E77: M | F77: MU40 | G77: 2.466666667 | H77: 68.9298893
A78: 77 | B78: 147 | C78: Rob McAllister | D78: Unattached | E78: M | F78: MU40 | G78: 2.477083333 | H78: 68.37638376
A79: 78 | B79: 75 | C79: Tony Mackay | D79: Pegasus RC | E79: M | F79: MO50 | G79: 2.482638889 | H79: 68.08118081
A80: 79 | B80: 1 | C80: Nick Harris | D80: Cwm Ogwr RC | E80: M | F80: MU40 | G80: 2.483333333 | H80: 68.04428044
A81: 80 | B81: 51 | C81: Robert Wilson | D81: Penarth & Dinas Runners | E81: M | F81: MO50 | G81: 2.488888889 | H81: 67.74907749
A82: 81 | B82: 277 | C82: David Underhill | D82: Unattached | E82: M | F82: MU40 | G82: 2.490972222 | H82: 67.63837638
A83: 82 | B83: 110 | C83: David Harden | D83: Unattached | E83: M | F83: MU40 | G83: 2.496527778 | H83: 67.34317343
A84: 83 | B84: 151 | C84: Matthew Lynch | D84: Unattached | E84: M | F84: MO40 | G84: 2.503472222 | H84: 66.97416974
A85: 84 | B85: 131 | C85: Nigel Graham | D85: Unattached | E85: M | F85: MO40 | G85: 2.513888889 | H85: 66.42066421
A86: 85 | B86: 263 | C86: John Magee | D86: Les Croupiers RC | E86: M | F86: MO40 | G86: 2.518055556 | H86: 66.19926199
A87: 86 | B87: 40 | C87: Howard Kent | D87: Les Croupiers RC | E87: M | F87: MO60 | G87: 2.519444444 | H87: 66.12546125
A88: 87 | B88: 71 | C88: Paul Thomas | D88: Islwyn RC | E88: M | F88: MO40 | G88: 2.522222222 | H88: 65.97785978
A89: 88 | B89: 250 | C89: Alice Bedwell | D89: Mynyddwyr de Cymru | E89: F | F89: FO50 | G89: 2.529166667 | H89: 65.60885609
A90: 89 | B90: 174 | C90: Stephen May | D90: Pontypridd Roadents | E90: M | F90: MO40 | G90: 2.532638889 | H90: 65.42435424
A91: 90 | B91: 305 | C91: Kerry Galey | D91: Unattached | E91: M | F91: MO50 | G91: 2.534027778 | H91: 65.35055351
A92: 91 | B92: 6 | C92: Stephen Owen | D92: Chepstow Harriers | E92: M | F92: MO60 | G92: 2.5375 | H92: 65.16605166
A93: 92 | B93: 70 | C93: Nick Young | D93: Cardiff Tri | E93: M | F93: MU40 | G93: 2.540277778 | H93: 65.01845018
A94: 93 | B94: 69 | C94: Hefin Gruffydd | D94: Pontypridd Roadents | E94: M | F94: MO50 | G94: 2.540972222 | H94: 64.98154982
A95: 94 | B95: 253 | C95: Richard Howells | D95: Unattached | E95: M | F95: MU40 | G95: 2.540972222 | H95: 64.98154982
A96: 95 | B96: 9 | C96: Richard D Jones | D96: Unattached | E96: M | F96: MO40 | G96: 2.541666667 | H96: 64.94464945
A97: 96 | B97: 134 | C97: Stewart Harding | D97: CDF Runners | E97: M | F97: MU40 | G97: 2.544444444 | H97: 64.79704797
A98: 97 | B98: 180 | C98: Craig Smith | D98: Pegasus RC | E98: M | F98: MU40 | G98: 2.547916667 | H98: 64.61254613
A99: 98 | B99: XX | C99: Unknown athlete | D99: Not recorded | G99: 2.55 | H99: 64.50184502
A100: 99 | B100: 32 | C100: Cath Tailby | D100: Penarth & Dinas Runners | E100: F | F100: FO40 | G100: 2.552083333 | H100: 64.39114391
A101: 100 | B101: 304 | C101: Peter Llewellyn | D101: Unattached | E101: M | F101: MU40 | G101: 2.555555556 | H101: 64.20664207
A102: 101 | B102: 109 | C102: Gareth Jones | D102: Mynyddwyr de Cymru | E102: M | F102: MO60 | G102: 2.558333333 | H102: 64.05904059
A103: 102 | B103: 260 | C103: Harry Row | D103: Unattached | E103: M | F103: MU40 | G103: 2.561111111 | H103: 63.91143911
A104: 103 | B104: 65 | C104: Rhys Griffiths | D104: Hendre Lake RC | E104: M | F104: MU40 | G104: 2.561805556 | H104: 63.87453875
A105: 104 | B105: 98 | C105: Patrick Keating | D105: Unattached | E105: M | F105: MU40 | G105: 2.563888889 | H105: 63.76383764
A106: 105 | B106: 247 | C106: Paul Harvey | D106: Pontypool | E106: M | F106: MU40 | G106: 2.564583333 | H106: 63.72693727
A107: 106 | B107: 162 | C107: Ian Leaves | D107: Unattached | E107: M | F107: MO40 | G107: 2.566666667 | H107: 63.61623616
A108: 107 | B108: 11 | C108: Sally Lock | D108: Unattached | E108: F | F108: FU40 | G108: 2.573611111 | H108: 63.24723247
A109: 108 | B109: 150 | C109: Glenn Powell | D109: Penarth & Dinas Runners | E109: M | F109: MU40 | G109: 2.588888889 | H109: 62.43542435
A110: 109 | B110: 184 | C110: David Cornish | D110: Port Talbot Harriers | E110: M | F110: MO50 | G110: 2.605555556 | H110: 61.5498155
A111: 110 | B111: 291 | C111: Gina Hardman | D111: Bridgend AC | E111: F | F111: FO40 | G111: 2.610416667 | H111: 61.29151292
A112: 111 | B112: 123 | C112: Jan Edwards | D112: Pontypridd Roadents | E112: F | F112: FO40 | G112: 2.615277778 | H112: 61.03321033
A113: 112 | B113: 125 | C113: Richard Bowie | D113: Fairwater Runners | E113: M | F113: MO50 | G113: 2.620833333 | H113: 60.73800738
A114: 113 | B114: 17 | C114: John Kerley | D114: AS Chamonix | E114: M | F114: MO60 | G114: 2.625 | H114: 60.51660517
A115: 114 | B115: 292 | C115: Jessica Ellis | D115: Les Croupiers RC | E115: F | F115: FU40 | G115: 2.625694444 | H115: 60.4797048
A116: 115 | B116: 276 | C116: Robert Haley | D116: Unattached | E116: M | F116: MU40 | G116: 2.627777778 | H116: 60.36900369
A117: 116 | B117: 111 | C117: Pat Westlake | D117: Unattached | E117: M | F117: MO50 | G117: 2.629166667 | H117: 60.29520295
A118: 117 | B118: 317 | C118: Jeremy Theobald | D118: Cardiff Tri | E118: M | F118: MU40 | G118: 2.636111111 | H118: 59.92619926
A119: 118 | B119: XX | C119: Unknown athlete | D119: Not recorded | G119: 2.636111111 | H119: 59.92619926
A120: 119 | B120: XX | C120: Unknown athlete | D120: Not recorded | G120: 2.638888889 | H120: 59.77859779
A121: 120 | B121: XX | C121: Unknown athlete | D121: Not recorded | G121: 2.640277778 | H121: 59.70479705
A122: 121 | B122: 22 | C122: Anna Lewis | D122: Unattached | E122: F | F122: FU40 | G122: 2.643055556 | H122: 59.55719557
A123: 122 | B123: 169 | C123: Ian Bell | D123: San Domenico RC | E123: M | F123: MO50 | G123: 2.652777778 | H123: 59.04059041
A124: 123 | B124: 312 | C124: Paul Gilsen | D124: Unattached | E124: M | F124: MU40 | G124: 2.660416667 | H124: 58.63468635
A125: 124 | B125: 314 | C125: Will Owens? | D125: Unattached | E125: M | F125: MU40 | G125: 2.661805556 | H125: 58.56088561
A126: 125 | B126: 286 | C126: Jeanette Jenkins | D126: Fairwater Runners | E126: F | F126: FO50 | G126: 2.6625 | H126: 58.52398524
A127: 126 | B127: 33 | C127: Roy Silver | D127: Les Croupiers RC | E127: M | F127: MO50 | G127: 2.665972222 | H127: 58.33948339
A128: 127 | B128: 108 | C128: Karen Elvers | D128: Mynyddwyr de Cymru | E128: F | F128: FO40 | G128: 2.671527778 | H128: 58.04428044
A129: 128 | B129: 67 | C129: Martin Slucutt | D129: Swansea Harriers | E129: M | F129: MU40 | G129: 2.672222222 | H129: =(2-(G129/I$1))*100 -> 58.00738007
A130: 129 | B130: 124 | C130: John Carroll | D130: Roberttown Runners | E130: M | F130: MO50 | G130: 2.672916667 | H130: 57.9704797
A131: 130 | B131: 197 | C131: Liz Merrifield | D131: Unattached | E131: F | F131: FU40 | G131: 2.673611111 | H131: 57.93357934
A132: 131 | B132: 271 | C132: Steven Burnett | D132: Unattached | E132: M | F132: MU40 | G132: 2.674305556 | H132: 57.89667897
A133: 132 | B133: 90 | C133: Judith Oakley | D133: Vegan Runners | E133: F | F133: FO50 | G133: 2.675 | H133: 57.8597786
A134: 133 | B134: 141 | C134: Stuart Davies | D134: South Wales Police Tri | E134: M | F134: MO40 | G134: 2.679861111 | H134: 57.60147601
A135: 134 | B135: 272 | C135: Ruth Deards | D135: Les Croupiers RC | E135: F | F135: FO40 | G135: 2.688888889 | H135: 57.12177122
A136: 135 | B136: 177 | C136: Martin Gebbett | D136: Horstorth Fellindale | E136: M | F136: MO50 | G136: 2.69375 | H136: 56.86346863
A137: 136 | B137: 172 | C137: Linda Woodland | D137: Port Talbot Harriers | E137: F | F137: FO50 | G137: 2.697222222 | H137: 56.67896679
A138: 137 | B138: 13 | C138: Glyn Drucker | D138: Caerphilly Runners | E138: M | F138: MO40 | G138: 2.705555556 | H138: 56.23616236
A139: 138 | B139: 155 | C139: Dewi Gwynedd | D139: Unattached | E139: M | F139: MO40 | G139: 2.706944444 | H139: 56.16236162
A140: 139 | B140: 278 | C140: Kat Hunter | D140: Unattached | E140: F | F140: FU40 | G140: 2.713888889 | H140: 55.79335793
A141: 140 | B141: 16 | C141: Dave Mathews | D141: Penarth & Dinas Runners | E141: M | F141: MU40 | G141: 2.720138889 | H141: 55.46125461
A142: 141 | B142: 264 | C142: Bob Ford | D142: Pontypridd Roadents | E142: M | F142: MO60 | G142: 2.722916667 | H142: 55.31365314
A143: 142 | B143: 268 | C143: Jonathan Morris | D143: Unattached | E143: M | F143: MU40 | G143: 2.727083333 | H143: 55.09225092
A144: 143 | B144: 252 | C144: Kris Powell | D144: Unattached | E144: F | F144: FU40 | G144: 2.73125 | H144: 54.87084871
A145: 144 | B145: 311 | C145: Nicholas Pounder | D145: Pontypridd Roadents | E145: M | F145: MO40 | G145: 2.7375 | H145: 54.53874539
A146: 145 | B146: 63 | C146: Aisling Pigott | D146: Outdoor Fitness | E146: F | F146: FU40 | G146: 2.740277778 | H146: 54.39114391
A147: 146 | B147: 200 | C147: Neill Parker | D147: Islwyn RC | E147: M | F147: MO40 | G147: 2.741666667 | H147: 54.31734317
A148: 147 | B148: 285 | C148: Martyn Jenkins | D148: Fairwater Runners | E148: M | F148: MO50 | G148: 2.748611111 | H148: 53.94833948
A149: 148 | B149: 119 | C149: Adrian Gwilliam | D149: Fairwater Runners | E149: M | F149: MO50 | G149: 2.752777778 | H149: 53.72693727
A150: 149 | B150: 142 | C150: Neil Coleman | D150: Unattached | E150: M | F150: MO50 | G150: 2.766666667 | H150: 52.98892989
A151: 150 | B151: 288 | C151: Dean McNeil-Jones | D151: Unattached | E151: M | F151: MO40 | G151: 2.775694444 | H151: 52.50922509
A152: 151 | B152: 287 | C152: Andrew Ramsey | D152: Caerphilly Runners | E152: M | F152: MU40 | G152: 2.779166667 | H152: 52.32472325
A153: 152 | B153: 159 | C153: Tim Buckley | D153: Chepstow Harriers | E153: M | F153: MO40 | G153: 2.784722222 | H153: 52.0295203
A154: 153 | B154: 282 | C154: Karen Hackwell | D154: Unattached | E154: F | F154: FO40 | G154: 2.7875 | H154: 51.88191882
A155: 154 | B155: 251 | C155: Daniel Morgan | D155: Bridgend AC | E155: M | F155: MU40 | G155: 2.795138889 | H155: 51.47601476
A156: 155 | B156: 165 | C156: Lisa Cleary | D156: Penarth & Dinas Runners | E156: F | F156: FO50 | G156: 2.804861111 | H156: 50.95940959
A157: 156 | B157: 289 | C157: Rachel Garside | D157: Unattached | E157: F | F157: FO40 | G157: 2.80625 | H157: 50.88560886
A158: 157 | B158: 133 | C158: Tim O'Sullivan | D158: Les Croupiers RC | E158: M | F158: MO50 | G158: 2.806944444 | H158: 50.84870849
A159: 158 | B159: 121 | C159: Peter Dorrington | D159: Unattached | E159: M | F159: MU40 | G159: 2.818055556 | H159: 50.25830258
A160: 159 | B160: 114 | C160: Stephen Paskell | D160: Pontyclun Road Runners | E160: M | F160: MO40 | G160: 2.81875 | H160: 50.22140221
A161: 160 | B161: 194 | C161: Gwyn Jones | D161: Les Croupiers RC | E161: M | F161: MO50 | G161: 2.81875 | H161: 50.22140221
A162: 161 | B162: 50 | C162: Neil Cook | D162: Unattached | E162: M | F162: MO40 | G162: 2.822222222 | H162: 50.03690037
A163: 162 | B163: 36 | C163: Andrew Palmer | D163: Penarth & Dinas Runners | E163: M | F163: MO40 | G163: 2.822916667 | H163: 50
A164: 163 | B164: 146 | C164: Jon Griffiths | D164: Village Vipers | E164: M | F164: MO40 | G164: 2.827777778 | H164: 49.74169742
A165: 164 | B165: 273 | C165: Haydn Griffiths | D165: Mynyddwyr de Cymru | E165: M | F165: MO50 | G165: 2.831944444 | H165: 49.5202952
A166: 165 | B166: 261 | C166: Emma Battensby | D166: Unattached | E166: F | F166: FU40 | G166: 2.834027778 | H166: 49.4095941
A167: 166 | B167: 39 | C167: Elaine Wharmby | D167: Pegasus RC | E167: F | F167: FO50 | G167: 2.8375 | H167: 49.22509225
A168: 167 | B168: 308 | C168: Adrian Eggleton | D168: Unattached | E168: M | F168: MO40 | G168: 2.850694444 | H168: 48.52398524
A169: 168 | B169: 88 | C169: Julie Scholey | D169: Les Croupiers RC | E169: F | F169: FO50 | G169: 2.857638889 | H169: 48.15498155
A170: 169 | B170: 258 | C170: Hywel Williams | D170: Caerphilly Runners | E170: M | F170: MU40 | G170: 2.865972222 | H170: 47.71217712
A171: 170 | B171: 179 | C171: Stephen Wood | D171: Pegasus RC | E171: M | F171: MU40 | G171: 2.866666667 | H171: 47.67527675
A172: 171 | B172: 48 | C172: Joyce Dodd | D172: Chepstow Harriers | E172: F | F172: F060 | G172: 2.86875 | H172: 47.56457565
A173: 172 | B173: 315 | C173: Jenni Bell | D173: Chepstow Harriers | E173: F | F173: FO40 | G173: 2.881944444 | H173: 46.86346863
A174: 173 | B174: 14 | C174: Andrew Oliver | D174: Chepstow Harriers | E174: M | F174: MO40 | G174: 2.884027778 | H174: 46.75276753
A175: 174 | B175: 116 | C175: Tim Gibbs | D175: Unattached | E175: M | F175: MU40 | G175: 2.884722222 | H175: 46.71586716
A176: 175 | B176: 115 | C176: Martin Charles | D176: Pontyclun Road Runners | E176: M | F176: MU40 | G176: 2.886805556 | H176: 46.60516605
A177: 176 | B177: 163 | C177: Paula Allen | D177: Pegasus RC | E177: F | F177: FO40 | G177: 2.8875 | H177: 46.56826568
A178: 177 | B178: 187 | C178: Chris Chambost | D178: Pontyclun Road Runners | E178: M | F178: MU40 | G178: 2.888888889 | H178: 46.49446494
A179: 178 | B179: 302 | C179: Heidi Thomas | D179: Unattached | E179: F | F179: FU40 | G179: 2.889583333 | H179: 46.45756458
A180: 179 | B180: 152 | C180: Kevin Fowler | D180: Pegasus RC | E180: M | F180: MO50 | G180: 2.897222222 | H180: 46.05166052
A181: 180 | B181: 199 | C181: David E Williams | D181: Les Croupiers RC | E181: M | F181: MO50 | G181: 2.897916667 | H181: 46.01476015
A182: 181 | B182: 195 | C182: Jane Ash | D182: Les Croupiers RC | E182: F | F182: FO40 | G182: 2.904166667 | H182: 45.68265683
A183: 182 | B183: 185 | C183: Caroline Dallimore | D183: Les Croupiers RC | E183: F | F183: FO60 | G183: 2.909722222 | H183: 45.38745387
A184: 183 | B184: 301 | C184: Kevin Duncan | D184: Unattached | E184: M | F184: MU40 | G184: 2.922916667 | H184: 44.68634686
A185: 184 | B185: 24 | C185: Steve Hill | D185: Penarth & Dinas Runners | E185: M | F185: MO50 | G185: 2.927083333 | H185: 44.46494465
A186: 185 | B186: 303 | C186: Neil Stephens | D186: Unattached | E186: M | F186: MU40 | G186: 2.93125 | H186: 44.24354244
A187: 186 | B187: 68 | C187: Beth Lewis | D187: Les Croupiers RC | E187: F | F187: FU40 | G187: 2.933333333 | H187: 44.13284133
A188: 187 | B188: 29 | C188: Matt Robertson | D188: Penarth & Dinas Runners | E188: M | F188: MU40 | G188: 2.935416667 | H188: 44.02214022
A189: 188 | B189: 102 | C189: Rebecca Brumbill | D189: Pontyclun Road Runners | E189: F | F189: FU40 | G189: 2.946527778 | H189: 43.43173432
A190: 189 | B190: 55 | C190: Sara Macbride-Stewart | D190: Unattached | E190: F | F190: FO40 | G190: 2.952083333 | H190: 43.13653137
A191: 190 | B191: 316 | C191: Kim Carwardine | D191: Chepstow Harriers | E191: F | F191: FU40 | G191: 2.959027778 | H191: =(2-(G191/I$1))*100 -> 42.76752768
A192: 191 | B192: 72 | C192: Gavin Simon | D192: Unattached | E192: M | F192: MU40 | G192: 2.961111111 | H192: 42.65682657
A193: 192 | B193: 164 | C193: Yvonne Williams | D193: Penarth & Dinas Runners | E193: F | F193: FO60 | G193: 2.963888889 | H193: 42.50922509
A194: 193 | B194: 193 | C194: Gwen Richards | D194: Pontypridd Roadents | E194: F | F194: FU23 | G194: 2.964583333 | H194: 42.47232472
A195: 194 | B195: 84 | C195: Chris Purdon | D195: Unattached | E195: M | F195: MO50 | G195: 2.972222222 | H195: 42.06642066
A196: 195 | B196: 64 | C196: Christine Farr | D196: SWOC | E196: F | F196: FO40 | G196: 2.979861111 | H196: 41.66051661
A197: 196 | B197: 283 | C197: Peter Jenkins | D197: Unattached | E197: M | F197: MU40 | G197: 2.986111111 | H197: 41.32841328
A198: 197 | B198: 160 | C198: Jen Danger Harding | D198: Chepstow Harriers | E198: F | F198: FU40 | G198: 2.992361111 | H198: 40.99630996
A199: 198 | B199: 31 | C199: Chris Selby | D199: San Domenico RC | E199: M | F199: MO40 | G199: 2.995833333 | H199: 40.81180812
A200: 199 | B200: 319 | C200: Abigail Foulkes | D200: Unattached | E200: F | F200: FU40 | G200: 2.995833333 | H200: 40.81180812
... 78 more rows

Sheet Mynydd Pen Y Fal
A1: Position | B1: Number | C1: Name | D1: Club | E1: Gender | F1: Category | G1: Time | H1: Points | I1: =AVERAGE(G2:G6) -> 00:41:27.600
A2: 1 | B2: 31 | C2: Iwan Morton | D2: MMRT | E2: M | F2: MU40 | G2: 00:41:13 | H2: =(2-(G2/I$1))*100 -> 100.5869111
A3: 2 | B3: 9 | C3: Ian Macklin | D3: MDC | E3: M | F3: M040 | G3: 00:41:17 | H3: =(2-(G3/I$1))*100 -> 100.4261135
A4: 3 | B4: 10 | C4: Oscar Partridge | D4: Mynydd Du | E4: M | F4: MU40 | G4: 00:41:25 | H4: 100.1045184
A5: 4 | B5: 29 | C5: Matt Stott | D5: MDC | E5: M | F5: MU40 | G5: 00:41:39 | H5: 99.54172697
A6: 5 | B6: 18 | C6: John Aggleton | D6: MDC | E6: M | F6: MO60 | G6: 00:41:44 | H6: 99.34073002
A7: 6 | B7: 30 | C7: Matthew Lawson | D7: Chepstow Harriers | E7: M | F7: MO40 | G7: 00:41:47 | H7: 99.22013185
A8: 7 | B8: 12 | C8: Ricahrd Cronin | D8: MDC | E8: M | F8: MU40 | G8: 00:42:36 | H8: 97.25036179
A9: 8 | B9: 38 | C9: Tim Woodier | D9: Mynydd Du | E9: M | F9: MU40 | G9: 00:42:41 | H9: 97.04936485
A10: 9 | B10: 23 | C10: Oliver Lamford | D10: MDC | E10: M | F10: MU40 | G10: 00:43:13 | H10: 95.7629844
A11: 10 | B11: 28 | C11: Jason King | D11: LMRT | E11: M | F11: M040 | G11: 00:43:15 | H11: 95.68258562
A12: 11 | B12: 27 | C12: Mike Fawcett | D12: LMRT | E12: M | F12: MO40 | G12: 00:43:20 | H12: 95.48158868
A13: 12 | B13: 47 | C13: Gary Davies | D13: MDC | E13: M | F13: MU40 | G13: 00:43:28 | H13: 95.15999357
A14: 13 | B14: 32 | C14: Dan Sandford | D14: Forest of Dean AC | E14: M | F14: MO40 | G14: 00:43:45 | H14: 94.47660396
A15: 14 | B15: 5 | C15: Andy Creber | D15: Chepstow Harriers | E15: M | F15: MO50 | G15: 00:43:51 | H15: 94.23540762
A16: 15 | B16: 1 | C16: Julian Boon | D16: Forest of Dean AC | E16: M | F16: MO40 | G16: 00:43:59 | H16: 93.91381251
A17: 16 | B17: 8 | C17: Paul Tucker | D17: U/A | E17: M | F17: MO50 | G17: 00:44:04 | H17: 93.71281557
A18: 17 | B18: 11 | C18: James Woodier | D18: Mynydd Du | E18: M | F18: MU40 | G18: 00:44:13 | H18: 93.35102106
A19: 18 | B19: 43 | C19: Andrew Dickens | D19: Mynydd Du | E19: M | F19: MO40 | G19: 00:44:18 | H19: 93.15002412
A20: 19 | B20: 17 | C20: Emma Bayliss | D20: Mynydd Du | E20: F | F20: FU40 | G20: 00:45:09 | H20: 91.09985528
A21: 20 | B21: 36 | C21: Roger Milss | D21: Mynydd Du/Vegan Runners | E21: M | F21: MO40 | G21: 00:45:23 | H21: 90.53706384
A22: 21 | B22: 33 | C22: Mark Matthews | D22: Forest of Dean AC | E22: M | F22: MO40 | G22: 00:45:33 | H22: 90.13506995
A23: 22 | B23: 25 | C23: Daniel Morgan | D23: Bridgend AC | E23: M | F23: MU40 | G23: 00:46:03 | H23: 88.92908828
A24: 23 | B24: 41 | C24: Justin Ross | D24: Mynydd Du | E24: M | F24: MU40 | G24: 00:46:12 | H24: 88.56729378
A25: 24 | B25: 15 | C25: Rona Davies | D25: Mynydd Du | E25: F | F25: FO50 | G25: 00:46:34 | H25: 87.68290722
A26: 25 | B26: 44 | C26: Jamie Clode | D26: Bridgend AC | E26: M | F26: MU40 | G26: 00:47:03 | H26: 86.51712494
A27: 26 | B27: 16 | C27: Hywel James | D27: U/A | E27: M | F27: MU40 | G27: 00:47:12 | H27: 86.15533044
A28: 27 | B28: 26 | C28: Jon Thiel | D28: Bridgend AC | E28: M | F28: MU40 | G28: 00:47:27 | H28: 85.5523396
A29: 28 | B29: 42 | C29: Lou Summers | D29: Mynydd Du | E29: F | F29: FO40 | G29: 00:47:32 | H29: 85.35134266
A30: 29 | B30: 46 | C30: Thomas M | D30: Mynydd Du | E30: M | F30: MU40 | G30: 00:47:33 | H30: 85.31114327
A31: 30 | B31: 40 | C31: Zoe Proctor | D31: Mynydd Du | E31: F | F31: FU40 | G31: 00:47:44 | H31: 84.86894999
A32: 31 | B32: 6 | C32: Gareth Watkins | D32: MDC | E32: M | F32: MO60 | G32: 00:48:41 | H32: 82.57758482
A33: 32 | B33: 19 | C33: Andy Stott | D33: MDC | E33: M | F33: MO50 | G33: 00:50:29 | H33: 78.23605081
A34: 33 | B34: 14 | C34: Ben Watkins | D34: Mynydd Du | E34: M | F34: MU40 | G34: 00:50:40 | H34: 77.79385753
A35: 34 | B35: 45 | C35: David Jenkins | D35: Forest of Dean AC | E35: M | F35: MU40 | G35: 00:51:13 | H35: 76.4672777
A36: 35 | B36: 21 | C36: Peter Havard | D36: MDC | E36: M | F36: MO60 | G36: 00:51:29 | H36: 75.82408747
A37: 36 | B37: 3 | C37: John Price | D37: Hay Hotfooters | E37: M | F37: MO50 | G37: 00:51:40 | H37: 75.3818942
A38: 37 | B38: 39 | C38: Wyn Davies | D38: Mynydd Du | E38: M | F38: MO50 | G38: 00:51:57 | H38: 74.69850458
A39: 38 | B39: 7 | C39: Karen Elvers | D39: MDC | E39: F | F39: FO40 | G39: 00:52:14 | H39: 74.01511497
A40: 39 | B40: 20 | C40: Fraser Stephens | D40: SWOC | E40: M | F40: MO40 | G40: 00:52:24 | H40: 73.61312108
A41: 40 | B41: 34 | C41: Paul Cahill | D41: U/A | E41: M | F41: MU40 | G41: 00:53:52 | H41: 70.07557485
A42: 41 | B42: 13 | C42: Jan Richards | D42: Mynydd Du | E42: F | F42: FO50 | G42: 00:59:25 | H42: 56.68917832
A43: 42 | B43: 22 | C43: Gemma O'Brien | D43: U/A | E43: F | F43: FU40 | G43: 00:59:58 | H43: 55.36259849
A44: 43 | B44: 24 | C44: Kevin Hale | D44: Bridgend AC | E44: M | F44: MO50 | G44: 00:59:58 | H44: 55.36259849
A45: 44 | B45: 4 | C45: Les Pugh | D45: MDC | E45: M | F45: M060 | G45: 01:05:05 | H45: =(2-(G45/I$1))*100 -> 43.02138607
A46: 45 | B46: 35 | C46: Elizabeth Iefrat | D46: U/A | E46: F | F46: FU40 | G46: 01:07:46 | H46: =(2-(G46/I$1))*100 -> 36.54928445
A47: 46 | B47: 37 | C47: Antol Sandor | D47: Mynydd Du | E47: M | F47: MO40 | G47: 01:10:13 | H47: 30.63997427

Sheet Craig Yr Allt
A1: Position | B1: Number | C1: Name | D1: Club | E1: Category | F1: Time | G1: Points | H1: =AVERAGE(F2:F6) -> 

Sheet Tintern Trot
A1: Position | B1: Number | C1: Name | D1: Club | E1: Category | F1: Time | G1: Points | H1: =AVERAGE(F2:F6) -> 
